{"text_format":"1","workbook":"xlsx","n_sheets":4,"sheets":["1","بيانات","data","حساب سائق"],"not_rendered":{"charts":0,"images":0,"macros":1,"external_links":0,"defined_names":6,"comments":0,"pivot_tables":1},"unopened":[],"bounds":{"document_bytes":16777216,"sheet_cells":100000,"rows_first":2000,"rows_last":500,"rows_between":2000,"halvings":0,"cell_chars":16384,"cell_head_chars":4096},"cells_cut":0,"cells_raw":0,"read":"whole","date_system":"1900"}

{"sheet":"1","index":0,"n_rows":68,"n_cols":13,"rows_kept":68,"cut":false,"hidden":false,"merged":[[0,3,0,6],[0,9,0,11],[1,3,1,6],[1,10,1,11],[2,6,3,7],[2,9,2,11],[65,7,65,8],[62,8,62,10],[63,7,63,8],[64,7,64,8],[4,6,4,7],[4,9,4,11],[5,4,5,7],[5,9,5,11],[6,3,6,6]]}
["مـنـتـج تــام","زيـوت خــام",null,"شركة عباد  الرحمن  للنقل الداخلي",null,null,null,null,1093,"كمال محمد السيد محمد                          "]
["الايمان    737","أحمد ع القوى   2691",null,"العاشر من رمضان ",null,null,null,null,1204,"ملف ضريبي"," 35-03-552-01584-5"]
["محرم     1619","المستقبل        1317",null,null,null,"فـــاتــورة  ",null,null,null,"ماموريه ضرائب العاشر من رمضان"]
[]
["جمعية    1220","الامين         2546",null,null,null,null,"منتج تام  ",null,{"$f":"SUM(I1:I4)","v":2297},"سجل  تجارى : 6707"]
["الاسراء    1630","المؤسسة      2631",null,null,"المطلوب من :- شركة ارما التجاريه",null,null,null,null,"التسجيل ضريبي 576-885-259"]
[null,null,null,"2019-10-10",null,null,null,null,1203]
[null,null,"عمود1","م","القيمة +\n 14 %","القيمة\n بالجنيه","سعر \nالطن","الكميه","المحافظة","رقم \nShipment","نوع\nالسيارة","الميزان","عمود2"]
[]
[]
[]
[]
[]
[]
[]
[]
[]
[]
[]
[]
[]
[]
[]
[]
[]
[]
[]
[]
[]
[]
[]
[]
[]
[]
[]
[]
[]
[]
[]
[]
[]
[]
[]
[null,null,null,1,{"$f":"IFERROR((الجدول6[[#This Row],[القيمة\n بالجنيه]]*1.14),\"\")","v":""},{"$f":"IFERROR(ROUND(G44*H44,2),\"\")","v":""},{"$f":"IFERROR(INDEX(الجدول4[[5 طن]:[وش]],MATCH(الجدول6[[#This Row],[المحافظة]],الجدول4[عمود1],0),MATCH(الجدول6[[#This Row],[نوع\nالسيارة]],الجدول4[[#Headers],[5 طن]:[وش]],0)),\"\")","v":""},{"$f":"IFERROR(OFFSET(الجدول1[[#Headers],[عمود1]],MATCH(C44,الجدول1[الشيب],0),24),\"\")","v":""},{"$f":"IFERROR(OFFSET(الجدول1[[#Headers],[عمود1]],MATCH(C44,الجدول1[الشيب],0),7),\"\")","v":""},{"$f":"الجدول6[[#This Row],[عمود1]]","v":0},{"$f":"IFERROR(OFFSET(الجدول1[[#Headers],[عمود1]],MATCH(C44,الجدول1[الشيب],0),26),\"\")","v":""},{"$f":"IFERROR(OFFSET(الجدول1[[#Headers],[عمود1]],MATCH(C44,الجدول1[الشيب],0),21),\"\")","v":""},201]
[null,null,null,2,{"$f":"IFERROR((الجدول6[[#This Row],[القيمة\n بالجنيه]]*1.14),\"\")","v":""},{"$f":"IFERROR(ROUND(G45*H45,2),\"\")","v":""},{"$f":"IFERROR(INDEX(الجدول4[[5 طن]:[وش]],MATCH(الجدول6[[#This Row],[المحافظة]],الجدول4[عمود1],0),MATCH(الجدول6[[#This Row],[نوع\nالسيارة]],الجدول4[[#Headers],[5 طن]:[وش]],0)),\"\")","v":""},{"$f":"IFERROR(OFFSET(الجدول1[[#Headers],[عمود1]],MATCH(C45,الجدول1[الشيب],0),24),\"\")","v":""},{"$f":"IFERROR(OFFSET(الجدول1[[#Headers],[عمود1]],MATCH(C45,الجدول1[الشيب],0),7),\"\")","v":""},{"$f":"الجدول6[[#This Row],[عمود1]]","v":0},{"$f":"IFERROR(OFFSET(الجدول1[[#Headers],[عمود1]],MATCH(C45,الجدول1[الشيب],0),26),\"\")","v":""},{"$f":"IFERROR(OFFSET(الجدول1[[#Headers],[عمود1]],MATCH(C45,الجدول1[الشيب],0),21),\"\")","v":""},1684]
[null,null,null,3,{"$f":"IFERROR((الجدول6[[#This Row],[القيمة\n بالجنيه]]*1.14),\"\")","v":""},"",{"$f":"IFERROR(INDEX(الجدول4[[5 طن]:[وش]],MATCH(الجدول6[[#This Row],[المحافظة]],الجدول4[عمود1],0),MATCH(الجدول6[[#This Row],[نوع\nالسيارة]],الجدول4[[#Headers],[5 طن]:[وش]],0)),\"\")","v":""},{"$f":"IFERROR(OFFSET(الجدول1[[#Headers],[عمود1]],MATCH(C46,الجدول1[الشيب],0),24),\"\")","v":""},{"$f":"IFERROR(OFFSET(الجدول1[[#Headers],[عمود1]],MATCH(C46,الجدول1[الشيب],0),7),\"\")","v":""},{"$f":"الجدول6[[#This Row],[عمود1]]","v":0},{"$f":"IFERROR(OFFSET(الجدول1[[#Headers],[عمود1]],MATCH(C46,الجدول1[الشيب],0),26),\"\")","v":""},{"$f":"IFERROR(OFFSET(الجدول1[[#Headers],[عمود1]],MATCH(C46,الجدول1[الشيب],0),21),\"\")","v":""},1771]
[null,null,null,4,{"$f":"IFERROR((الجدول6[[#This Row],[القيمة\n بالجنيه]]*1.14),\"\")","v":""},"",{"$f":"IFERROR(INDEX(الجدول4[[5 طن]:[وش]],MATCH(الجدول6[[#This Row],[المحافظة]],الجدول4[عمود1],0),MATCH(الجدول6[[#This Row],[نوع\nالسيارة]],الجدول4[[#Headers],[5 طن]:[وش]],0)),\"\")","v":""},{"$f":"IFERROR(OFFSET(الجدول1[[#Headers],[عمود1]],MATCH(C47,الجدول1[الشيب],0),24),\"\")","v":""},{"$f":"IFERROR(OFFSET(الجدول1[[#Headers],[عمود1]],MATCH(C47,الجدول1[الشيب],0),7),\"\")","v":""},{"$f":"الجدول6[[#This Row],[عمود1]]","v":0},{"$f":"IFERROR(OFFSET(الجدول1[[#Headers],[عمود1]],MATCH(C47,الجدول1[الشيب],0),26),\"\")","v":""},{"$f":"IFERROR(OFFSET(الجدول1[[#Headers],[عمود1]],MATCH(C47,الجدول1[الشيب],0),21),\"\")","v":""},0]
[null,null,null,5,{"$f":"IFERROR((الجدول6[[#This Row],[القيمة\n بالجنيه]]*1.14),\"\")","v":""},"",{"$f":"IFERROR(INDEX(الجدول4[[5 طن]:[وش]],MATCH(الجدول6[[#This Row],[المحافظة]],الجدول4[عمود1],0),MATCH(الجدول6[[#This Row],[نوع\nالسيارة]],الجدول4[[#Headers],[5 طن]:[وش]],0)),\"\")","v":""},{"$f":"IFERROR(OFFSET(الجدول1[[#Headers],[عمود1]],MATCH(C48,الجدول1[الشيب],0),24),\"\")","v":""},{"$f":"IFERROR(OFFSET(الجدول1[[#Headers],[عمود1]],MATCH(C48,الجدول1[الشيب],0),7),\"\")","v":""},{"$f":"الجدول6[[#This Row],[عمود1]]","v":0},{"$f":"IFERROR(OFFSET(الجدول1[[#Headers],[عمود1]],MATCH(C48,الجدول1[الشيب],0),26),\"\")","v":""},{"$f":"IFERROR(OFFSET(الجدول1[[#Headers],[عمود1]],MATCH(C48,الجدول1[الشيب],0),21),\"\")","v":""},{"$f":"SUBTOTAL(109,M9:M47)","v":3656}]
[null,null,null,6,{"$f":"IFERROR((الجدول6[[#This Row],[القيمة\n بالجنيه]]*1.14),\"\")","v":""},"",{"$f":"IFERROR(INDEX(الجدول4[[5 طن]:[وش]],MATCH(الجدول6[[#This Row],[المحافظة]],الجدول4[عمود1],0),MATCH(الجدول6[[#This Row],[نوع\nالسيارة]],الجدول4[[#Headers],[5 طن]:[وش]],0)),\"\")","v":""},{"$f":"IFERROR(OFFSET(الجدول1[[#Headers],[عمود1]],MATCH(C49,الجدول1[الشيب],0),24),\"\")","v":""},{"$f":"IFERROR(OFFSET(الجدول1[[#Headers],[عمود1]],MATCH(C49,الجدول1[الشيب],0),7),\"\")","v":""},{"$f":"الجدول6[[#This Row],[عمود1]]","v":0},{"$f":"IFERROR(OFFSET(الجدول1[[#Headers],[عمود1]],MATCH(C49,الجدول1[الشيب],0),26),\"\")","v":""},{"$f":"IFERROR(OFFSET(الجدول1[[#Headers],[عمود1]],MATCH(C49,الجدول1[الشيب],0),21),\"\")","v":""}]
[null,null,null,7,{"$f":"IFERROR((الجدول6[[#This Row],[القيمة\n بالجنيه]]*1.14),\"\")","v":""},"",{"$f":"IFERROR(INDEX(الجدول4[[5 طن]:[وش]],MATCH(الجدول6[[#This Row],[المحافظة]],الجدول4[عمود1],0),MATCH(الجدول6[[#This Row],[نوع\nالسيارة]],الجدول4[[#Headers],[5 طن]:[وش]],0)),\"\")","v":""},{"$f":"IFERROR(OFFSET(الجدول1[[#Headers],[عمود1]],MATCH(C50,الجدول1[الشيب],0),24),\"\")","v":""},{"$f":"IFERROR(OFFSET(الجدول1[[#Headers],[عمود1]],MATCH(C50,الجدول1[الشيب],0),7),\"\")","v":""},{"$f":"الجدول6[[#This Row],[عمود1]]","v":0},{"$f":"IFERROR(OFFSET(الجدول1[[#Headers],[عمود1]],MATCH(C50,الجدول1[الشيب],0),26),\"\")","v":""},{"$f":"IFERROR(OFFSET(الجدول1[[#Headers],[عمود1]],MATCH(C50,الجدول1[الشيب],0),21),\"\")","v":""}]
[null,null,null,8,{"$f":"IFERROR((الجدول6[[#This Row],[القيمة\n بالجنيه]]*1.14),\"\")","v":""},"",{"$f":"IFERROR(INDEX(الجدول4[[5 طن]:[وش]],MATCH(الجدول6[[#This Row],[المحافظة]],الجدول4[عمود1],0),MATCH(الجدول6[[#This Row],[نوع\nالسيارة]],الجدول4[[#Headers],[5 طن]:[وش]],0)),\"\")","v":""},{"$f":"IFERROR(OFFSET(الجدول1[[#Headers],[عمود1]],MATCH(C51,الجدول1[الشيب],0),24),\"\")","v":""},{"$f":"IFERROR(OFFSET(الجدول1[[#Headers],[عمود1]],MATCH(C51,الجدول1[الشيب],0),7),\"\")","v":""},{"$f":"الجدول6[[#This Row],[عمود1]]","v":0},{"$f":"IFERROR(OFFSET(الجدول1[[#Headers],[عمود1]],MATCH(C51,الجدول1[الشيب],0),26),\"\")","v":""},{"$f":"IFERROR(OFFSET(الجدول1[[#Headers],[عمود1]],MATCH(C51,الجدول1[الشيب],0),21),\"\")","v":""}]
[null,null,null,9,{"$f":"IFERROR((الجدول6[[#This Row],[القيمة\n بالجنيه]]*1.14),\"\")","v":""},"",{"$f":"IFERROR(INDEX(الجدول4[[5 طن]:[وش]],MATCH(الجدول6[[#This Row],[المحافظة]],الجدول4[عمود1],0),MATCH(الجدول6[[#This Row],[نوع\nالسيارة]],الجدول4[[#Headers],[5 طن]:[وش]],0)),\"\")","v":""},{"$f":"IFERROR(OFFSET(الجدول1[[#Headers],[عمود1]],MATCH(C52,الجدول1[الشيب],0),24),\"\")","v":""},{"$f":"IFERROR(OFFSET(الجدول1[[#Headers],[عمود1]],MATCH(C52,الجدول1[الشيب],0),7),\"\")","v":""},{"$f":"الجدول6[[#This Row],[عمود1]]","v":0},{"$f":"IFERROR(OFFSET(الجدول1[[#Headers],[عمود1]],MATCH(C52,الجدول1[الشيب],0),26),\"\")","v":""},{"$f":"IFERROR(OFFSET(الجدول1[[#Headers],[عمود1]],MATCH(C52,الجدول1[الشيب],0),21),\"\")","v":""}]
[null,null,null,10,{"$f":"IFERROR((الجدول6[[#This Row],[القيمة\n بالجنيه]]*1.14),\"\")","v":""},"",{"$f":"IFERROR(INDEX(الجدول4[[5 طن]:[وش]],MATCH(الجدول6[[#This Row],[المحافظة]],الجدول4[عمود1],0),MATCH(الجدول6[[#This Row],[نوع\nالسيارة]],الجدول4[[#Headers],[5 طن]:[وش]],0)),\"\")","v":""},{"$f":"IFERROR(OFFSET(الجدول1[[#Headers],[عمود1]],MATCH(C53,الجدول1[الشيب],0),24),\"\")","v":""},{"$f":"IFERROR(OFFSET(الجدول1[[#Headers],[عمود1]],MATCH(C53,الجدول1[الشيب],0),7),\"\")","v":""},{"$f":"الجدول6[[#This Row],[عمود1]]","v":0},{"$f":"IFERROR(OFFSET(الجدول1[[#Headers],[عمود1]],MATCH(C53,الجدول1[الشيب],0),26),\"\")","v":""},{"$f":"IFERROR(OFFSET(الجدول1[[#Headers],[عمود1]],MATCH(C53,الجدول1[الشيب],0),21),\"\")","v":""}]
[null,null,null,11,{"$f":"IFERROR((الجدول6[[#This Row],[القيمة\n بالجنيه]]*1.14),\"\")","v":""},"",{"$f":"IFERROR(INDEX(الجدول4[[5 طن]:[وش]],MATCH(الجدول6[[#This Row],[المحافظة]],الجدول4[عمود1],0),MATCH(الجدول6[[#This Row],[نوع\nالسيارة]],الجدول4[[#Headers],[5 طن]:[وش]],0)),\"\")","v":""},{"$f":"IFERROR(OFFSET(الجدول1[[#Headers],[عمود1]],MATCH(C54,الجدول1[الشيب],0),24),\"\")","v":""},{"$f":"IFERROR(OFFSET(الجدول1[[#Headers],[عمود1]],MATCH(C54,الجدول1[الشيب],0),7),\"\")","v":""},{"$f":"الجدول6[[#This Row],[عمود1]]","v":0},{"$f":"IFERROR(OFFSET(الجدول1[[#Headers],[عمود1]],MATCH(C54,الجدول1[الشيب],0),26),\"\")","v":""},{"$f":"IFERROR(OFFSET(الجدول1[[#Headers],[عمود1]],MATCH(C54,الجدول1[الشيب],0),21),\"\")","v":""}]
[null,null,null,12,{"$f":"IFERROR((الجدول6[[#This Row],[القيمة\n بالجنيه]]*1.14),\"\")","v":""},"",{"$f":"IFERROR(INDEX(الجدول4[[5 طن]:[وش]],MATCH(الجدول6[[#This Row],[المحافظة]],الجدول4[عمود1],0),MATCH(الجدول6[[#This Row],[نوع\nالسيارة]],الجدول4[[#Headers],[5 طن]:[وش]],0)),\"\")","v":""},{"$f":"IFERROR(OFFSET(الجدول1[[#Headers],[عمود1]],MATCH(C55,الجدول1[الشيب],0),24),\"\")","v":""},{"$f":"IFERROR(OFFSET(الجدول1[[#Headers],[عمود1]],MATCH(C55,الجدول1[الشيب],0),7),\"\")","v":""},{"$f":"الجدول6[[#This Row],[عمود1]]","v":0},{"$f":"IFERROR(OFFSET(الجدول1[[#Headers],[عمود1]],MATCH(C55,الجدول1[الشيب],0),26),\"\")","v":""},{"$f":"IFERROR(OFFSET(الجدول1[[#Headers],[عمود1]],MATCH(C55,الجدول1[الشيب],0),21),\"\")","v":""}]
[null,null,null,13,{"$f":"IFERROR((الجدول6[[#This Row],[القيمة\n بالجنيه]]*1.14),\"\")","v":""},"",{"$f":"IFERROR(INDEX(الجدول4[[5 طن]:[وش]],MATCH(الجدول6[[#This Row],[المحافظة]],الجدول4[عمود1],0),MATCH(الجدول6[[#This Row],[نوع\nالسيارة]],الجدول4[[#Headers],[5 طن]:[وش]],0)),\"\")","v":""},{"$f":"IFERROR(OFFSET(الجدول1[[#Headers],[عمود1]],MATCH(C56,الجدول1[الشيب],0),24),\"\")","v":""},{"$f":"IFERROR(OFFSET(الجدول1[[#Headers],[عمود1]],MATCH(C56,الجدول1[الشيب],0),7),\"\")","v":""},{"$f":"الجدول6[[#This Row],[عمود1]]","v":0},{"$f":"IFERROR(OFFSET(الجدول1[[#Headers],[عمود1]],MATCH(C56,الجدول1[الشيب],0),26),\"\")","v":""},{"$f":"IFERROR(OFFSET(الجدول1[[#Headers],[عمود1]],MATCH(C56,الجدول1[الشيب],0),21),\"\")","v":""}]
[null,null,null,14,{"$f":"IFERROR((الجدول6[[#This Row],[القيمة\n بالجنيه]]*1.14),\"\")","v":""},"",{"$f":"IFERROR(INDEX(الجدول4[[5 طن]:[وش]],MATCH(الجدول6[[#This Row],[المحافظة]],الجدول4[عمود1],0),MATCH(الجدول6[[#This Row],[نوع\nالسيارة]],الجدول4[[#Headers],[5 طن]:[وش]],0)),\"\")","v":""},{"$f":"IFERROR(OFFSET(الجدول1[[#Headers],[عمود1]],MATCH(C57,الجدول1[الشيب],0),24),\"\")","v":""},{"$f":"IFERROR(OFFSET(الجدول1[[#Headers],[عمود1]],MATCH(C57,الجدول1[الشيب],0),7),\"\")","v":""},{"$f":"الجدول6[[#This Row],[عمود1]]","v":0},{"$f":"IFERROR(OFFSET(الجدول1[[#Headers],[عمود1]],MATCH(C57,الجدول1[الشيب],0),26),\"\")","v":""},{"$f":"IFERROR(OFFSET(الجدول1[[#Headers],[عمود1]],MATCH(C57,الجدول1[الشيب],0),21),\"\")","v":""}]
[null,null,null,15,{"$f":"IFERROR((الجدول6[[#This Row],[القيمة\n بالجنيه]]*1.14),\"\")","v":""},"",{"$f":"IFERROR(INDEX(الجدول4[[5 طن]:[وش]],MATCH(الجدول6[[#This Row],[المحافظة]],الجدول4[عمود1],0),MATCH(الجدول6[[#This Row],[نوع\nالسيارة]],الجدول4[[#Headers],[5 طن]:[وش]],0)),\"\")","v":""},{"$f":"IFERROR(OFFSET(الجدول1[[#Headers],[عمود1]],MATCH(C58,الجدول1[الشيب],0),24),\"\")","v":""},{"$f":"IFERROR(OFFSET(الجدول1[[#Headers],[عمود1]],MATCH(C58,الجدول1[الشيب],0),7),\"\")","v":""},{"$f":"الجدول6[[#This Row],[عمود1]]","v":0},{"$f":"IFERROR(OFFSET(الجدول1[[#Headers],[عمود1]],MATCH(C58,الجدول1[الشيب],0),26),\"\")","v":""},{"$f":"IFERROR(OFFSET(الجدول1[[#Headers],[عمود1]],MATCH(C58,الجدول1[الشيب],0),21),\"\")","v":""}]
[null,null,null,16,{"$f":"IFERROR((الجدول6[[#This Row],[القيمة\n بالجنيه]]*1.14),\"\")","v":""},"",{"$f":"IFERROR(INDEX(الجدول4[[5 طن]:[وش]],MATCH(الجدول6[[#This Row],[المحافظة]],الجدول4[عمود1],0),MATCH(الجدول6[[#This Row],[نوع\nالسيارة]],الجدول4[[#Headers],[5 طن]:[وش]],0)),\"\")","v":""},{"$f":"IFERROR(OFFSET(الجدول1[[#Headers],[عمود1]],MATCH(C59,الجدول1[الشيب],0),24),\"\")","v":""},{"$f":"IFERROR(OFFSET(الجدول1[[#Headers],[عمود1]],MATCH(C59,الجدول1[الشيب],0),7),\"\")","v":""},{"$f":"الجدول6[[#This Row],[عمود1]]","v":0},{"$f":"IFERROR(OFFSET(الجدول1[[#Headers],[عمود1]],MATCH(C59,الجدول1[الشيب],0),26),\"\")","v":""},{"$f":"IFERROR(OFFSET(الجدول1[[#Headers],[عمود1]],MATCH(C59,الجدول1[الشيب],0),21),\"\")","v":""}]
[null,null,null,17,{"$f":"IFERROR((الجدول6[[#This Row],[القيمة\n بالجنيه]]*1.14),\"\")","v":""},"",{"$f":"IFERROR(INDEX(الجدول4[[5 طن]:[وش]],MATCH(الجدول6[[#This Row],[المحافظة]],الجدول4[عمود1],0),MATCH(الجدول6[[#This Row],[نوع\nالسيارة]],الجدول4[[#Headers],[5 طن]:[وش]],0)),\"\")","v":""},{"$f":"IFERROR(OFFSET(الجدول1[[#Headers],[عمود1]],MATCH(C60,الجدول1[الشيب],0),24),\"\")","v":""},{"$f":"IFERROR(OFFSET(الجدول1[[#Headers],[عمود1]],MATCH(C60,الجدول1[الشيب],0),7),\"\")","v":""},{"$f":"الجدول6[[#This Row],[عمود1]]","v":0},{"$f":"IFERROR(OFFSET(الجدول1[[#Headers],[عمود1]],MATCH(C60,الجدول1[الشيب],0),26),\"\")","v":""},{"$f":"IFERROR(OFFSET(الجدول1[[#Headers],[عمود1]],MATCH(C60,الجدول1[الشيب],0),21),\"\")","v":""}]
[null,null,null,18,{"$f":"IFERROR((الجدول6[[#This Row],[القيمة\n بالجنيه]]*1.14),\"\")","v":""},"",{"$f":"IFERROR(INDEX(الجدول4[[5 طن]:[وش]],MATCH(الجدول6[[#This Row],[المحافظة]],الجدول4[عمود1],0),MATCH(الجدول6[[#This Row],[نوع\nالسيارة]],الجدول4[[#Headers],[5 طن]:[وش]],0)),\"\")","v":""},{"$f":"IFERROR(OFFSET(الجدول1[[#Headers],[عمود1]],MATCH(C61,الجدول1[الشيب],0),24),\"\")","v":""},{"$f":"IFERROR(OFFSET(الجدول1[[#Headers],[عمود1]],MATCH(C61,الجدول1[الشيب],0),7),\"\")","v":""},{"$f":"الجدول6[[#This Row],[عمود1]]","v":0},{"$f":"IFERROR(OFFSET(الجدول1[[#Headers],[عمود1]],MATCH(C61,الجدول1[الشيب],0),26),\"\")","v":""},{"$f":"IFERROR(OFFSET(الجدول1[[#Headers],[عمود1]],MATCH(C61,الجدول1[الشيب],0),21),\"\")","v":""}]
[null,null,null,19,{"$f":"IFERROR((الجدول6[[#This Row],[القيمة\n بالجنيه]]*1.14),\"\")","v":""},"",{"$f":"IFERROR(INDEX(الجدول4[[5 طن]:[وش]],MATCH(الجدول6[[#This Row],[المحافظة]],الجدول4[عمود1],0),MATCH(الجدول6[[#This Row],[نوع\nالسيارة]],الجدول4[[#Headers],[5 طن]:[وش]],0)),\"\")","v":""},{"$f":"IFERROR(OFFSET(الجدول1[[#Headers],[عمود1]],MATCH(C62,الجدول1[الشيب],0),24),\"\")","v":""},{"$f":"IFERROR(OFFSET(الجدول1[[#Headers],[عمود1]],MATCH(C62,الجدول1[الشيب],0),7),\"\")","v":""},{"$f":"الجدول6[[#This Row],[عمود1]]","v":0},{"$f":"IFERROR(OFFSET(الجدول1[[#Headers],[عمود1]],MATCH(C62,الجدول1[الشيب],0),26),\"\")","v":""},{"$f":"IFERROR(OFFSET(الجدول1[[#Headers],[عمود1]],MATCH(C62,الجدول1[الشيب],0),21),\"\")","v":""}]
[null,null,null,null,{"$f":"SUMIF(E44:E62,\"<>#n/a\")","v":0},{"$f":"SUMIF(F44:F62,\"<>#n/a\")","v":0},null,{"$f":"SUM(H52:H56)","v":0},null,null,null,0]
[null,null,null,null,null,null,{"$f":"F63*14%","v":0}," 14%ضريبة مبيعات"]
[null,null,null,null,null,null,{"$f":"F63*3/100","v":0}," 3%خصم واضافة"]
[null,null,null,null,null,null,{"$f":"F63+G64-G65","v":0},"اجمالى المستحق "]
[null,null,null,null,16428.349999999999]
[null,null,null,null,{"$f":"E63-E67","v":-16428.349999999999}]

{"sheet":"بيانات","index":1,"n_rows":107,"n_cols":34,"rows_kept":107,"cut":false,"hidden":false,"merged":[[2,1,2,5],[0,8,0,23],[1,3,1,23],[0,5,0,6],[0,1,0,4]]}
[null,"المستحق بالجنيه",null,null,null,{"$f":"(W3+V3+K3)-(G3+I3+J3)","v":-25745},null,"جنيه",{"$f":"NOW()","v":"2020-07-23T15:48:30.740"}]
[null,null,null,{"$f":"CurrText(F1,1,\"جنيه\",\"جنيهات\",1,\"قرش\",\"قروش\",2)","v":"خمسة وعشرون ألفاً وسبعمائة وخمس وأربعون جنيه فقط لاغير"}]
[null,"اجماليات",null,null,null,null,{"$f":"SUBTOTAL(9,G5:G94254)","v":30300},null,{"$f":"SUBTOTAL(9,I5:I94254)","v":15},{"$f":"SUBTOTAL(9,J5:J94254)","v":0},{"$f":"SUBTOTAL(9,K5:K94254)","v":0},null,null,null,null,null,null,{"$f":"SUBTOTAL(9,R5:R94254)","v":10450},null,null,null,{"$f":"SUBTOTAL(9,V5:V94254)","v":3740},{"$f":"SUBTOTAL(9,W5:W94254)","v":830}]
["عمود1","التاريخ","السائق","السياره ","مكان التحميل","مكان التعتيق","عهدة","المحافظة","خصم","سلفه","شيك","تحميل","غسيل","تشحيم","صيانه","كاوتش","زيت","سولار","ملاحظات","مقاول","نوع_النقله","ميزان","القيمه","الشيب","الكمية","سعر_الطن","نوع السيارة","محاسبه","ت المحاسبه","عمود5","نوع السيارة4","كارتات","عمود4","عمود8"]
[{"$f":"الجدول1[[#This Row],[الشيب]]","v":194157},"2020-01-01","هاني عبدالمنعم",9626,null,"فوكس",400,"الجيزه",null,null,null,null,null,null,null,null,null,null,null,null,"طن",75,{"$f":"IFERROR(ROUND($Y5*$Z5,0),\"\")","v":330},194157,3,{"$f":"IFERROR(IF(الجدول1[[#This Row],[نوع_النقله]]=\"نقلة\",INDEX(الجدول35[[5 طن]:[وش]],MATCH(الجدول1[[#This Row],[المحافظة]],الجدول35[عمود1],0),MATCH(الجدول1[[#This Row],[نوع السيارة]],الجدول35[[#Headers],[5 طن]:[وش]],0)),INDEX(الجدول3[[5 طن]:[وش]],MATCH(الجدول1[[#This Row],[المحافظة]],الجدول3[عمود1],0),MATCH(الجدول1[[#This Row],[نوع السيارة]],الجدول3[[#Headers],[5 طن]:[وش]],0))),\"\")","v":110},"5 طن"]
[{"$f":"الجدول1[[#This Row],[الشيب]]","v":194034},"2020-01-01","محمود احمد",7421,null,"الفيوم",600,"القاهره",null,null,null,null,null,null,null,null,null,null,null,null,"طن",75,{"$f":"IFERROR(ROUND($Y6*$Z6,0),\"\")","v":500},194034,5,{"$f":"IFERROR(IF(الجدول1[[#This Row],[نوع_النقله]]=\"نقلة\",INDEX(الجدول35[[5 طن]:[وش]],MATCH(الجدول1[[#This Row],[المحافظة]],الجدول35[عمود1],0),MATCH(الجدول1[[#This Row],[نوع السيارة]],الجدول35[[#Headers],[5 طن]:[وش]],0)),INDEX(الجدول3[[5 طن]:[وش]],MATCH(الجدول1[[#This Row],[المحافظة]],الجدول3[عمود1],0),MATCH(الجدول1[[#This Row],[نوع السيارة]],الجدول3[[#Headers],[5 طن]:[وش]],0))),\"\")","v":100},"5 طن"]
[{"$f":"الجدول1[[#This Row],[الشيب]]","v":194079},"2020-01-02","علاء شحاته",7462,null,"البدرشين",300,"الجيزه",null,null,null,null,null,null,null,null,null,null,null,null,"طن",75,0,194079,null,{"$f":"IFERROR(IF(الجدول1[[#This Row],[نوع_النقله]]=\"نقلة\",INDEX(الجدول35[[5 طن]:[وش]],MATCH(الجدول1[[#This Row],[المحافظة]],الجدول35[عمود1],0),MATCH(الجدول1[[#This Row],[نوع السيارة]],الجدول35[[#Headers],[5 طن]:[وش]],0)),INDEX(الجدول3[[5 طن]:[وش]],MATCH(الجدول1[[#This Row],[المحافظة]],الجدول3[عمود1],0),MATCH(الجدول1[[#This Row],[نوع السيارة]],الجدول3[[#Headers],[5 طن]:[وش]],0))),\"\")","v":110},"5 طن"]
[{"$f":"الجدول1[[#This Row],[الشيب]]","v":194162},"2020-01-05","محمود عبدالعظيم",7594,null,"اسكندريه",500,"الاسكندريه",null,null,null,null,null,null,null,null,null,null,null,null,"طن",80,0,194162,null,{"$f":"IFERROR(IF(الجدول1[[#This Row],[نوع_النقله]]=\"نقلة\",INDEX(الجدول35[[5 طن]:[وش]],MATCH(الجدول1[[#This Row],[المحافظة]],الجدول35[عمود1],0),MATCH(الجدول1[[#This Row],[نوع السيارة]],الجدول35[[#Headers],[5 طن]:[وش]],0)),INDEX(الجدول3[[5 طن]:[وش]],MATCH(الجدول1[[#This Row],[المحافظة]],الجدول3[عمود1],0),MATCH(الجدول1[[#This Row],[نوع السيارة]],الجدول3[[#Headers],[5 طن]:[وش]],0))),\"\")","v":215},"5 طن"]
[{"$f":"الجدول1[[#This Row],[الشيب]]","v":"194093/4/5/6/7/8"},"2020-01-07","حامد رفعت",1698,null,"اسكندريه",null,"الاسكندريه",null,null,null,null,null,null,null,null,null,1000,"لفه4",null,"طن",80,0,"194093/4/5/6/7/8",null,{"$f":"IFERROR(IF(الجدول1[[#This Row],[نوع_النقله]]=\"نقلة\",INDEX(الجدول35[[5 طن]:[وش]],MATCH(الجدول1[[#This Row],[المحافظة]],الجدول35[عمود1],0),MATCH(الجدول1[[#This Row],[نوع السيارة]],الجدول35[[#Headers],[5 طن]:[وش]],0)),INDEX(الجدول3[[5 طن]:[وش]],MATCH(الجدول1[[#This Row],[المحافظة]],الجدول3[عمود1],0),MATCH(الجدول1[[#This Row],[نوع السيارة]],الجدول3[[#Headers],[5 طن]:[وش]],0))),\"\")","v":215},"5 طن"]
[{"$f":"الجدول1[[#This Row],[الشيب]]","v":193904},"2020-01-18","رمضان محمود",7293,null,"جيزه",null,"الجيزه",null,null,null,null,null,null,null,null,null,null,null,null,"طن",75,0,193904,null,{"$f":"IFERROR(IF(الجدول1[[#This Row],[نوع_النقله]]=\"نقلة\",INDEX(الجدول35[[5 طن]:[وش]],MATCH(الجدول1[[#This Row],[المحافظة]],الجدول35[عمود1],0),MATCH(الجدول1[[#This Row],[نوع السيارة]],الجدول35[[#Headers],[5 طن]:[وش]],0)),INDEX(الجدول3[[5 طن]:[وش]],MATCH(الجدول1[[#This Row],[المحافظة]],الجدول3[عمود1],0),MATCH(الجدول1[[#This Row],[نوع السيارة]],الجدول3[[#Headers],[5 طن]:[وش]],0))),\"\")","v":110},"5 طن"]
[{"$f":"الجدول1[[#This Row],[الشيب]]","v":194087},"2020-02-01","رمضان محمود",7293,null,"ام زغو",200,"الاسكندريه",null,null,null,null,null,null,null,null,null,null,null,null,"طن",80,0,194087,null,{"$f":"IFERROR(IF(الجدول1[[#This Row],[نوع_النقله]]=\"نقلة\",INDEX(الجدول35[[5 طن]:[وش]],MATCH(الجدول1[[#This Row],[المحافظة]],الجدول35[عمود1],0),MATCH(الجدول1[[#This Row],[نوع السيارة]],الجدول35[[#Headers],[5 طن]:[وش]],0)),INDEX(الجدول3[[5 طن]:[وش]],MATCH(الجدول1[[#This Row],[المحافظة]],الجدول3[عمود1],0),MATCH(الجدول1[[#This Row],[نوع السيارة]],الجدول3[[#Headers],[5 طن]:[وش]],0))),\"\")","v":215},"5 طن"]
[{"$f":"الجدول1[[#This Row],[الشيب]]","v":194031},"2020-02-05","رمضان حمدي",1328,null,"الحرمين",null,"الجيزه",null,null,null,null,null,null,null,null,null,null,null,null,"طن",65,0,194031,null,{"$f":"IFERROR(IF(الجدول1[[#This Row],[نوع_النقله]]=\"نقلة\",INDEX(الجدول35[[5 طن]:[وش]],MATCH(الجدول1[[#This Row],[المحافظة]],الجدول35[عمود1],0),MATCH(الجدول1[[#This Row],[نوع السيارة]],الجدول35[[#Headers],[5 طن]:[وش]],0)),INDEX(الجدول3[[5 طن]:[وش]],MATCH(الجدول1[[#This Row],[المحافظة]],الجدول3[عمود1],0),MATCH(الجدول1[[#This Row],[نوع السيارة]],الجدول3[[#Headers],[5 طن]:[وش]],0))),\"\")","v":110},"5 طن"]
[{"$f":"الجدول1[[#This Row],[الشيب]]","v":194111},"2020-02-07","رمضان حمدي",1328,null,"العاشر",null,"العاشر",null,null,null,null,null,null,null,null,null,null,null,null,"طن",null,0,194111,null,{"$f":"IFERROR(IF(الجدول1[[#This Row],[نوع_النقله]]=\"نقلة\",INDEX(الجدول35[[5 طن]:[وش]],MATCH(الجدول1[[#This Row],[المحافظة]],الجدول35[عمود1],0),MATCH(الجدول1[[#This Row],[نوع السيارة]],الجدول35[[#Headers],[5 طن]:[وش]],0)),INDEX(الجدول3[[5 طن]:[وش]],MATCH(الجدول1[[#This Row],[المحافظة]],الجدول3[عمود1],0),MATCH(الجدول1[[#This Row],[نوع السيارة]],الجدول3[[#Headers],[5 طن]:[وش]],0))),\"\")","v":40},"5 طن"]
[{"$f":"الجدول1[[#This Row],[الشيب]]","v":193910},"2020-03-09","محمد عادل",1279,null,"مترو",100,"اكتوبر",null,null,null,null,null,null,null,null,null,850,null,null,"طن",75,0,193910,null,{"$f":"IFERROR(IF(الجدول1[[#This Row],[نوع_النقله]]=\"نقلة\",INDEX(الجدول35[[5 طن]:[وش]],MATCH(الجدول1[[#This Row],[المحافظة]],الجدول35[عمود1],0),MATCH(الجدول1[[#This Row],[نوع السيارة]],الجدول35[[#Headers],[5 طن]:[وش]],0)),INDEX(الجدول3[[5 طن]:[وش]],MATCH(الجدول1[[#This Row],[المحافظة]],الجدول3[عمود1],0),MATCH(الجدول1[[#This Row],[نوع السيارة]],الجدول3[[#Headers],[5 طن]:[وش]],0))),\"\")","v":120},"5 طن"]
[{"$f":"الجدول1[[#This Row],[الشيب]]","v":193888},"2020-03-23","بشير السيد",3751,null,"ام زغو",150,"الاسكندريه",null,null,null,null,null,null,null,null,null,800,null,null,"طن",75,0,193888,null,{"$f":"IFERROR(IF(الجدول1[[#This Row],[نوع_النقله]]=\"نقلة\",INDEX(الجدول35[[5 طن]:[وش]],MATCH(الجدول1[[#This Row],[المحافظة]],الجدول35[عمود1],0),MATCH(الجدول1[[#This Row],[نوع السيارة]],الجدول35[[#Headers],[5 طن]:[وش]],0)),INDEX(الجدول3[[5 طن]:[وش]],MATCH(الجدول1[[#This Row],[المحافظة]],الجدول3[عمود1],0),MATCH(الجدول1[[#This Row],[نوع السيارة]],الجدول3[[#Headers],[5 طن]:[وش]],0))),\"\")","v":215},"5 طن"]
[{"$f":"الجدول1[[#This Row],[الشيب]]","v":194042},"2020-03-25","ابراهيم حسن",6718,null,"قاهره",100,"القاهره",null,null,null,null,null,null,null,null,null,null,"بروفت",null,"طن",75,0,194042,null,{"$f":"IFERROR(IF(الجدول1[[#This Row],[نوع_النقله]]=\"نقلة\",INDEX(الجدول35[[5 طن]:[وش]],MATCH(الجدول1[[#This Row],[المحافظة]],الجدول35[عمود1],0),MATCH(الجدول1[[#This Row],[نوع السيارة]],الجدول35[[#Headers],[5 طن]:[وش]],0)),INDEX(الجدول3[[5 طن]:[وش]],MATCH(الجدول1[[#This Row],[المحافظة]],الجدول3[عمود1],0),MATCH(الجدول1[[#This Row],[نوع السيارة]],الجدول3[[#Headers],[5 طن]:[وش]],0))),\"\")","v":100},"5 طن"]
[{"$f":"الجدول1[[#This Row],[الشيب]]","v":194131},"2020-03-26","ابراهيم محمد",6847,null,"السويس",400,"السويس",null,null,null,null,null,null,null,null,null,null,null,null,"طن",75,0,194131,null,{"$f":"IFERROR(IF(الجدول1[[#This Row],[نوع_النقله]]=\"نقلة\",INDEX(الجدول35[[5 طن]:[وش]],MATCH(الجدول1[[#This Row],[المحافظة]],الجدول35[عمود1],0),MATCH(الجدول1[[#This Row],[نوع السيارة]],الجدول35[[#Headers],[5 طن]:[وش]],0)),INDEX(الجدول3[[5 طن]:[وش]],MATCH(الجدول1[[#This Row],[المحافظة]],الجدول3[عمود1],0),MATCH(الجدول1[[#This Row],[نوع السيارة]],الجدول3[[#Headers],[5 طن]:[وش]],0))),\"\")","v":120},"5 طن"]
[{"$f":"الجدول1[[#This Row],[الشيب]]","v":194014},"2020-04-01","محمود حسن",9562,null,"السويس",null,"السويس",null,null,null,null,null,null,null,null,null,null,null,null,"طن",65,0,194014,null,{"$f":"IFERROR(IF(الجدول1[[#This Row],[نوع_النقله]]=\"نقلة\",INDEX(الجدول35[[5 طن]:[وش]],MATCH(الجدول1[[#This Row],[المحافظة]],الجدول35[عمود1],0),MATCH(الجدول1[[#This Row],[نوع السيارة]],الجدول35[[#Headers],[5 طن]:[وش]],0)),INDEX(الجدول3[[5 طن]:[وش]],MATCH(الجدول1[[#This Row],[المحافظة]],الجدول3[عمود1],0),MATCH(الجدول1[[#This Row],[نوع السيارة]],الجدول3[[#Headers],[5 طن]:[وش]],0))),\"\")","v":120},"5 طن"]
[{"$f":"الجدول1[[#This Row],[الشيب]]","v":193906},"2020-04-02","محمود حسن",9562,null,"الحرمين",null,"الجيزه",null,null,null,null,null,null,null,null,null,null,null,null,"طن",50,0,193906,null,{"$f":"IFERROR(IF(الجدول1[[#This Row],[نوع_النقله]]=\"نقلة\",INDEX(الجدول35[[5 طن]:[وش]],MATCH(الجدول1[[#This Row],[المحافظة]],الجدول35[عمود1],0),MATCH(الجدول1[[#This Row],[نوع السيارة]],الجدول35[[#Headers],[5 طن]:[وش]],0)),INDEX(الجدول3[[5 طن]:[وش]],MATCH(الجدول1[[#This Row],[المحافظة]],الجدول3[عمود1],0),MATCH(الجدول1[[#This Row],[نوع السيارة]],الجدول3[[#Headers],[5 طن]:[وش]],0))),\"\")","v":110},"5 طن"]
[{"$f":"الجدول1[[#This Row],[الشيب]]","v":194164},"2020-04-03","محمود حسن",9562,null,"فوكس",100,"الجيزه",null,null,null,null,null,null,null,null,null,null,null,null,"طن",65,0,194164,null,{"$f":"IFERROR(IF(الجدول1[[#This Row],[نوع_النقله]]=\"نقلة\",INDEX(الجدول35[[5 طن]:[وش]],MATCH(الجدول1[[#This Row],[المحافظة]],الجدول35[عمود1],0),MATCH(الجدول1[[#This Row],[نوع السيارة]],الجدول35[[#Headers],[5 طن]:[وش]],0)),INDEX(الجدول3[[5 طن]:[وش]],MATCH(الجدول1[[#This Row],[المحافظة]],الجدول3[عمود1],0),MATCH(الجدول1[[#This Row],[نوع السيارة]],الجدول3[[#Headers],[5 طن]:[وش]],0))),\"\")","v":110},"5 طن"]
[{"$f":"الجدول1[[#This Row],[الشيب]]","v":193930},"2020-05-30","عبده السيد",4217,null,"ابيس",null,"الاسكندريه",null,null,null,null,null,null,null,null,null,null,null,null,"طن",80,0,193930,null,{"$f":"IFERROR(IF(الجدول1[[#This Row],[نوع_النقله]]=\"نقلة\",INDEX(الجدول35[[5 طن]:[وش]],MATCH(الجدول1[[#This Row],[المحافظة]],الجدول35[عمود1],0),MATCH(الجدول1[[#This Row],[نوع السيارة]],الجدول35[[#Headers],[5 طن]:[وش]],0)),INDEX(الجدول3[[5 طن]:[وش]],MATCH(الجدول1[[#This Row],[المحافظة]],الجدول3[عمود1],0),MATCH(الجدول1[[#This Row],[نوع السيارة]],الجدول3[[#Headers],[5 طن]:[وش]],0))),\"\")","v":215},"5 طن"]
[{"$f":"الجدول1[[#This Row],[الشيب]]","v":194143},"2020-05-31","عبده السيد",4217,null,"السويس",250,"السويس",null,null,null,null,null,null,null,null,null,null,null,null,"طن",75,0,194143,null,{"$f":"IFERROR(IF(الجدول1[[#This Row],[نوع_النقله]]=\"نقلة\",INDEX(الجدول35[[5 طن]:[وش]],MATCH(الجدول1[[#This Row],[المحافظة]],الجدول35[عمود1],0),MATCH(الجدول1[[#This Row],[نوع السيارة]],الجدول35[[#Headers],[5 طن]:[وش]],0)),INDEX(الجدول3[[5 طن]:[وش]],MATCH(الجدول1[[#This Row],[المحافظة]],الجدول3[عمود1],0),MATCH(الجدول1[[#This Row],[نوع السيارة]],الجدول3[[#Headers],[5 طن]:[وش]],0))),\"\")","v":120},"5 طن"]
[{"$f":"الجدول1[[#This Row],[الشيب]]","v":0},"2020-05-31","فريد محمد",null,null,"الوليد",300,null,null,null,null,null,null,null,null,null,null,null,null,null,"طن",null,"",null,null,{"$f":"IFERROR(IF(الجدول1[[#This Row],[نوع_النقله]]=\"نقلة\",INDEX(الجدول35[[5 طن]:[وش]],MATCH(الجدول1[[#This Row],[المحافظة]],الجدول35[عمود1],0),MATCH(الجدول1[[#This Row],[نوع السيارة]],الجدول35[[#Headers],[5 طن]:[وش]],0)),INDEX(الجدول3[[5 طن]:[وش]],MATCH(الجدول1[[#This Row],[المحافظة]],الجدول3[عمود1],0),MATCH(الجدول1[[#This Row],[نوع السيارة]],الجدول3[[#Headers],[5 طن]:[وش]],0))),\"\")","v":""},"5 طن"]
[{"$f":"الجدول1[[#This Row],[الشيب]]","v":278133},"2020-05-31","اسلام محمد",1487,null,"مكرونه اكتوبر",null,"اكتوبر",null,null,null,null,null,null,null,null,null,null,null,null,"طن",75,0,278133,null,{"$f":"IFERROR(IF(الجدول1[[#This Row],[نوع_النقله]]=\"نقلة\",INDEX(الجدول35[[5 طن]:[وش]],MATCH(الجدول1[[#This Row],[المحافظة]],الجدول35[عمود1],0),MATCH(الجدول1[[#This Row],[نوع السيارة]],الجدول35[[#Headers],[5 طن]:[وش]],0)),INDEX(الجدول3[[5 طن]:[وش]],MATCH(الجدول1[[#This Row],[المحافظة]],الجدول3[عمود1],0),MATCH(الجدول1[[#This Row],[نوع السيارة]],الجدول3[[#Headers],[5 طن]:[وش]],0))),\"\")","v":120},"5 طن"]
[{"$f":"الجدول1[[#This Row],[الشيب]]","v":"194286/7"},"2020-06-01","جمال عبدالحكيم",4327,null,"اسكندريه",700,"الاسكندريه",null,null,null,null,null,null,null,null,null,null,null,null,"طن",80,0,"194286/7",null,{"$f":"IFERROR(IF(الجدول1[[#This Row],[نوع_النقله]]=\"نقلة\",INDEX(الجدول35[[5 طن]:[وش]],MATCH(الجدول1[[#This Row],[المحافظة]],الجدول35[عمود1],0),MATCH(الجدول1[[#This Row],[نوع السيارة]],الجدول35[[#Headers],[5 طن]:[وش]],0)),INDEX(الجدول3[[5 طن]:[وش]],MATCH(الجدول1[[#This Row],[المحافظة]],الجدول3[عمود1],0),MATCH(الجدول1[[#This Row],[نوع السيارة]],الجدول3[[#Headers],[5 طن]:[وش]],0))),\"\")","v":215},"5 طن"]
[{"$f":"الجدول1[[#This Row],[الشيب]]","v":193948},"2020-05-30","جمال عبدالناصر",8152,null,"الجالي",null,"المنصوره",null,null,null,null,null,null,null,null,null,null,null,null,"طن",null,"",193948,null,{"$f":"IFERROR(IF(الجدول1[[#This Row],[نوع_النقله]]=\"نقلة\",INDEX(الجدول35[[5 طن]:[وش]],MATCH(الجدول1[[#This Row],[المحافظة]],الجدول35[عمود1],0),MATCH(الجدول1[[#This Row],[نوع السيارة]],الجدول35[[#Headers],[5 طن]:[وش]],0)),INDEX(الجدول3[[5 طن]:[وش]],MATCH(الجدول1[[#This Row],[المحافظة]],الجدول3[عمود1],0),MATCH(الجدول1[[#This Row],[نوع السيارة]],الجدول3[[#Headers],[5 طن]:[وش]],0))),\"\")","v":""},"5 طن"]
[{"$f":"الجدول1[[#This Row],[الشيب]]","v":194223},"2020-06-01","جمال عبدالناصر",8152,null,"اسكندريه",null,"الاسكندريه",null,null,null,null,null,null,null,null,null,null,null,null,"طن",65,0,194223,null,{"$f":"IFERROR(IF(الجدول1[[#This Row],[نوع_النقله]]=\"نقلة\",INDEX(الجدول35[[5 طن]:[وش]],MATCH(الجدول1[[#This Row],[المحافظة]],الجدول35[عمود1],0),MATCH(الجدول1[[#This Row],[نوع السيارة]],الجدول35[[#Headers],[5 طن]:[وش]],0)),INDEX(الجدول3[[5 طن]:[وش]],MATCH(الجدول1[[#This Row],[المحافظة]],الجدول3[عمود1],0),MATCH(الجدول1[[#This Row],[نوع السيارة]],الجدول3[[#Headers],[5 طن]:[وش]],0))),\"\")","v":215},"5 طن"]
[{"$f":"الجدول1[[#This Row],[الشيب]]","v":194197},"2020-06-01","محمد صلاح",8576,null,"ام زغو",150,"الاسكندريه",null,null,null,null,null,null,null,null,null,1000,null,null,"طن",65,0,194197,null,{"$f":"IFERROR(IF(الجدول1[[#This Row],[نوع_النقله]]=\"نقلة\",INDEX(الجدول35[[5 طن]:[وش]],MATCH(الجدول1[[#This Row],[المحافظة]],الجدول35[عمود1],0),MATCH(الجدول1[[#This Row],[نوع السيارة]],الجدول35[[#Headers],[5 طن]:[وش]],0)),INDEX(الجدول3[[5 طن]:[وش]],MATCH(الجدول1[[#This Row],[المحافظة]],الجدول3[عمود1],0),MATCH(الجدول1[[#This Row],[نوع السيارة]],الجدول3[[#Headers],[5 طن]:[وش]],0))),\"\")","v":215},"5 طن"]
[{"$f":"الجدول1[[#This Row],[الشيب]]","v":193905},"2020-06-01","احمد رافت",7918,null,"مترو",null,"اكتوبر",null,null,null,null,null,null,null,null,null,null,null,null,"طن",65,0,193905,null,{"$f":"IFERROR(IF(الجدول1[[#This Row],[نوع_النقله]]=\"نقلة\",INDEX(الجدول35[[5 طن]:[وش]],MATCH(الجدول1[[#This Row],[المحافظة]],الجدول35[عمود1],0),MATCH(الجدول1[[#This Row],[نوع السيارة]],الجدول35[[#Headers],[5 طن]:[وش]],0)),INDEX(الجدول3[[5 طن]:[وش]],MATCH(الجدول1[[#This Row],[المحافظة]],الجدول3[عمود1],0),MATCH(الجدول1[[#This Row],[نوع السيارة]],الجدول3[[#Headers],[5 طن]:[وش]],0))),\"\")","v":120},"5 طن"]
[{"$f":"الجدول1[[#This Row],[الشيب]]","v":194199},"2020-06-01","احمد رافت",7918,null,"ابيس",150,"الاسكندريه",null,null,null,null,null,null,null,null,null,1000,null,null,"طن",65,0,194199,null,{"$f":"IFERROR(IF(الجدول1[[#This Row],[نوع_النقله]]=\"نقلة\",INDEX(الجدول35[[5 طن]:[وش]],MATCH(الجدول1[[#This Row],[المحافظة]],الجدول35[عمود1],0),MATCH(الجدول1[[#This Row],[نوع السيارة]],الجدول35[[#Headers],[5 طن]:[وش]],0)),INDEX(الجدول3[[5 طن]:[وش]],MATCH(الجدول1[[#This Row],[المحافظة]],الجدول3[عمود1],0),MATCH(الجدول1[[#This Row],[نوع السيارة]],الجدول3[[#Headers],[5 طن]:[وش]],0))),\"\")","v":215},"5 طن"]
[{"$f":"الجدول1[[#This Row],[الشيب]]","v":194198},"2020-06-01","رمضان حمدي",1328,null,"العاشر",100,"العاشر",null,null,null,null,null,null,null,null,null,null,null,null,"طن",null,0,194198,null,{"$f":"IFERROR(IF(الجدول1[[#This Row],[نوع_النقله]]=\"نقلة\",INDEX(الجدول35[[5 طن]:[وش]],MATCH(الجدول1[[#This Row],[المحافظة]],الجدول35[عمود1],0),MATCH(الجدول1[[#This Row],[نوع السيارة]],الجدول35[[#Headers],[5 طن]:[وش]],0)),INDEX(الجدول3[[5 طن]:[وش]],MATCH(الجدول1[[#This Row],[المحافظة]],الجدول3[عمود1],0),MATCH(الجدول1[[#This Row],[نوع السيارة]],الجدول3[[#Headers],[5 طن]:[وش]],0))),\"\")","v":40},"5 طن"]
[{"$f":"الجدول1[[#This Row],[الشيب]]","v":194025},"2020-05-31","محمد عادل",1279,null,"السويس",null,"السويس",null,null,null,null,null,null,null,null,null,null,null,null,"طن",75,0,194025,null,{"$f":"IFERROR(IF(الجدول1[[#This Row],[نوع_النقله]]=\"نقلة\",INDEX(الجدول35[[5 طن]:[وش]],MATCH(الجدول1[[#This Row],[المحافظة]],الجدول35[عمود1],0),MATCH(الجدول1[[#This Row],[نوع السيارة]],الجدول35[[#Headers],[5 طن]:[وش]],0)),INDEX(الجدول3[[5 طن]:[وش]],MATCH(الجدول1[[#This Row],[المحافظة]],الجدول3[عمود1],0),MATCH(الجدول1[[#This Row],[نوع السيارة]],الجدول3[[#Headers],[5 طن]:[وش]],0))),\"\")","v":120},"5 طن"]
[{"$f":"الجدول1[[#This Row],[الشيب]]","v":194078},"2020-06-01","محمد عادل",1279,null,"مترو",null,"اكتوبر",null,null,null,null,null,null,null,null,null,null,null,null,"طن",75,0,194078,null,{"$f":"IFERROR(IF(الجدول1[[#This Row],[نوع_النقله]]=\"نقلة\",INDEX(الجدول35[[5 طن]:[وش]],MATCH(الجدول1[[#This Row],[المحافظة]],الجدول35[عمود1],0),MATCH(الجدول1[[#This Row],[نوع السيارة]],الجدول35[[#Headers],[5 طن]:[وش]],0)),INDEX(الجدول3[[5 طن]:[وش]],MATCH(الجدول1[[#This Row],[المحافظة]],الجدول3[عمود1],0),MATCH(الجدول1[[#This Row],[نوع السيارة]],الجدول3[[#Headers],[5 طن]:[وش]],0))),\"\")","v":120},"5 طن"]
[{"$f":"الجدول1[[#This Row],[الشيب]]","v":194227},"2020-06-01","محمد عادل",1279,null,"سوق دوت كوم",100,"القاهره",null,null,null,null,null,null,null,null,null,null,null,null,"طن",null,0,194227,null,{"$f":"IFERROR(IF(الجدول1[[#This Row],[نوع_النقله]]=\"نقلة\",INDEX(الجدول35[[5 طن]:[وش]],MATCH(الجدول1[[#This Row],[المحافظة]],الجدول35[عمود1],0),MATCH(الجدول1[[#This Row],[نوع السيارة]],الجدول35[[#Headers],[5 طن]:[وش]],0)),INDEX(الجدول3[[5 طن]:[وش]],MATCH(الجدول1[[#This Row],[المحافظة]],الجدول3[عمود1],0),MATCH(الجدول1[[#This Row],[نوع السيارة]],الجدول3[[#Headers],[5 طن]:[وش]],0))),\"\")","v":100},"5 طن"]
[{"$f":"الجدول1[[#This Row],[الشيب]]","v":"194304/5"},"2020-06-01","محمود حسن",9562,null,"القاهره",100,"القاهره",null,null,null,null,null,null,null,null,null,null,null,null,"طن",50,0,"194304/5",null,{"$f":"IFERROR(IF(الجدول1[[#This Row],[نوع_النقله]]=\"نقلة\",INDEX(الجدول35[[5 طن]:[وش]],MATCH(الجدول1[[#This Row],[المحافظة]],الجدول35[عمود1],0),MATCH(الجدول1[[#This Row],[نوع السيارة]],الجدول35[[#Headers],[5 طن]:[وش]],0)),INDEX(الجدول3[[5 طن]:[وش]],MATCH(الجدول1[[#This Row],[المحافظة]],الجدول3[عمود1],0),MATCH(الجدول1[[#This Row],[نوع السيارة]],الجدول3[[#Headers],[5 طن]:[وش]],0))),\"\")","v":100},"5 طن"]
[{"$f":"الجدول1[[#This Row],[الشيب]]","v":194311},"2020-06-01","رمضان محمود",7293,null,"جيزه",100,"الجيزه",null,null,null,null,null,null,null,null,null,null,null,null,"طن",75,0,194311,null,{"$f":"IFERROR(IF(الجدول1[[#This Row],[نوع_النقله]]=\"نقلة\",INDEX(الجدول35[[5 طن]:[وش]],MATCH(الجدول1[[#This Row],[المحافظة]],الجدول35[عمود1],0),MATCH(الجدول1[[#This Row],[نوع السيارة]],الجدول35[[#Headers],[5 طن]:[وش]],0)),INDEX(الجدول3[[5 طن]:[وش]],MATCH(الجدول1[[#This Row],[المحافظة]],الجدول3[عمود1],0),MATCH(الجدول1[[#This Row],[نوع السيارة]],الجدول3[[#Headers],[5 طن]:[وش]],0))),\"\")","v":110},"5 طن"]
[{"$f":"الجدول1[[#This Row],[الشيب]]","v":0},"2020-06-01","فريد محمد",null,null,"اسكندريه",700,null,null,null,null,null,null,null,null,null,null,null,null,null,"طن",null,"",null,null,{"$f":"IFERROR(IF(الجدول1[[#This Row],[نوع_النقله]]=\"نقلة\",INDEX(الجدول35[[5 طن]:[وش]],MATCH(الجدول1[[#This Row],[المحافظة]],الجدول35[عمود1],0),MATCH(الجدول1[[#This Row],[نوع السيارة]],الجدول35[[#Headers],[5 طن]:[وش]],0)),INDEX(الجدول3[[5 طن]:[وش]],MATCH(الجدول1[[#This Row],[المحافظة]],الجدول3[عمود1],0),MATCH(الجدول1[[#This Row],[نوع السيارة]],الجدول3[[#Headers],[5 طن]:[وش]],0))),\"\")","v":""},"5 طن"]
[{"$f":"الجدول1[[#This Row],[الشيب]]","v":278422},"2020-06-01","اسلام محمد",1487,null,"مكرونه اكتوبر",null,"اكتوبر",null,null,null,null,null,null,null,null,null,null,null,null,"طن",75,0,278422,null,{"$f":"IFERROR(IF(الجدول1[[#This Row],[نوع_النقله]]=\"نقلة\",INDEX(الجدول35[[5 طن]:[وش]],MATCH(الجدول1[[#This Row],[المحافظة]],الجدول35[عمود1],0),MATCH(الجدول1[[#This Row],[نوع السيارة]],الجدول35[[#Headers],[5 طن]:[وش]],0)),INDEX(الجدول3[[5 طن]:[وش]],MATCH(الجدول1[[#This Row],[المحافظة]],الجدول3[عمود1],0),MATCH(الجدول1[[#This Row],[نوع السيارة]],الجدول3[[#Headers],[5 طن]:[وش]],0))),\"\")","v":120},"5 طن"]
[{"$f":"الجدول1[[#This Row],[الشيب]]","v":194290},"2020-06-01","اسلام محمد",1487,null,"هايبر اكتوبر",600,"اكتوبر",null,null,null,null,null,null,null,null,null,null,null,null,"طن",75,0,194290,null,{"$f":"IFERROR(IF(الجدول1[[#This Row],[نوع_النقله]]=\"نقلة\",INDEX(الجدول35[[5 طن]:[وش]],MATCH(الجدول1[[#This Row],[المحافظة]],الجدول35[عمود1],0),MATCH(الجدول1[[#This Row],[نوع السيارة]],الجدول35[[#Headers],[5 طن]:[وش]],0)),INDEX(الجدول3[[5 طن]:[وش]],MATCH(الجدول1[[#This Row],[المحافظة]],الجدول3[عمود1],0),MATCH(الجدول1[[#This Row],[نوع السيارة]],الجدول3[[#Headers],[5 طن]:[وش]],0))),\"\")","v":120},"5 طن"]
[{"$f":"الجدول1[[#This Row],[الشيب]]","v":0},"2020-06-01","ابراهيم محمد",null,null,"قاهره",300,null,null,null,null,null,null,null,null,null,null,null,null,null,"طن",null,"",null,null,{"$f":"IFERROR(IF(الجدول1[[#This Row],[نوع_النقله]]=\"نقلة\",INDEX(الجدول35[[5 طن]:[وش]],MATCH(الجدول1[[#This Row],[المحافظة]],الجدول35[عمود1],0),MATCH(الجدول1[[#This Row],[نوع السيارة]],الجدول35[[#Headers],[5 طن]:[وش]],0)),INDEX(الجدول3[[5 طن]:[وش]],MATCH(الجدول1[[#This Row],[المحافظة]],الجدول3[عمود1],0),MATCH(الجدول1[[#This Row],[نوع السيارة]],الجدول3[[#Headers],[5 طن]:[وش]],0))),\"\")","v":""},"5 طن"]
[{"$f":"الجدول1[[#This Row],[الشيب]]","v":194295},"2020-06-01","علاء شحاته",7462,null,"كفرالشيخ",600,"كفر الشيخ",null,null,null,null,null,null,null,null,null,null,null,null,"طن",80,"",194295,null,{"$f":"IFERROR(IF(الجدول1[[#This Row],[نوع_النقله]]=\"نقلة\",INDEX(الجدول35[[5 طن]:[وش]],MATCH(الجدول1[[#This Row],[المحافظة]],الجدول35[عمود1],0),MATCH(الجدول1[[#This Row],[نوع السيارة]],الجدول35[[#Headers],[5 طن]:[وش]],0)),INDEX(الجدول3[[5 طن]:[وش]],MATCH(الجدول1[[#This Row],[المحافظة]],الجدول3[عمود1],0),MATCH(الجدول1[[#This Row],[نوع السيارة]],الجدول3[[#Headers],[5 طن]:[وش]],0))),\"\")","v":""},"5 طن"]
[{"$f":"الجدول1[[#This Row],[الشيب]]","v":0},"2020-06-01","عبده السيد",null,null,"قاهره",100,null,null,null,null,null,null,null,null,null,null,null,null,null,"طن",null,"",null,null,{"$f":"IFERROR(IF(الجدول1[[#This Row],[نوع_النقله]]=\"نقلة\",INDEX(الجدول35[[5 طن]:[وش]],MATCH(الجدول1[[#This Row],[المحافظة]],الجدول35[عمود1],0),MATCH(الجدول1[[#This Row],[نوع السيارة]],الجدول35[[#Headers],[5 طن]:[وش]],0)),INDEX(الجدول3[[5 طن]:[وش]],MATCH(الجدول1[[#This Row],[المحافظة]],الجدول3[عمود1],0),MATCH(الجدول1[[#This Row],[نوع السيارة]],الجدول3[[#Headers],[5 طن]:[وش]],0))),\"\")","v":""},"5 طن"]
[{"$f":"الجدول1[[#This Row],[الشيب]]","v":194134},"2020-06-01","ابراهيم حسن",6718,null,"القاهره",null,"القاهره",null,null,null,null,null,null,null,null,null,null,null,null,"طن",75,0,194134,null,{"$f":"IFERROR(IF(الجدول1[[#This Row],[نوع_النقله]]=\"نقلة\",INDEX(الجدول35[[5 طن]:[وش]],MATCH(الجدول1[[#This Row],[المحافظة]],الجدول35[عمود1],0),MATCH(الجدول1[[#This Row],[نوع السيارة]],الجدول35[[#Headers],[5 طن]:[وش]],0)),INDEX(الجدول3[[5 طن]:[وش]],MATCH(الجدول1[[#This Row],[المحافظة]],الجدول3[عمود1],0),MATCH(الجدول1[[#This Row],[نوع السيارة]],الجدول3[[#Headers],[5 طن]:[وش]],0))),\"\")","v":100},"5 طن"]
[{"$f":"الجدول1[[#This Row],[الشيب]]","v":194276},"2020-06-01","ابراهيم حسن",6718,null,"الفرجاني",100,"القاهره",null,null,null,null,null,null,null,null,null,null,null,null,"طن",75,0,194276,null,{"$f":"IFERROR(IF(الجدول1[[#This Row],[نوع_النقله]]=\"نقلة\",INDEX(الجدول35[[5 طن]:[وش]],MATCH(الجدول1[[#This Row],[المحافظة]],الجدول35[عمود1],0),MATCH(الجدول1[[#This Row],[نوع السيارة]],الجدول35[[#Headers],[5 طن]:[وش]],0)),INDEX(الجدول3[[5 طن]:[وش]],MATCH(الجدول1[[#This Row],[المحافظة]],الجدول3[عمود1],0),MATCH(الجدول1[[#This Row],[نوع السيارة]],الجدول3[[#Headers],[5 طن]:[وش]],0))),\"\")","v":100},"5 طن"]
[{"$f":"الجدول1[[#This Row],[الشيب]]","v":194264},"2020-06-01","هاني عبدالمنعم",9626,null,"كفرالشيخ",500,"كفر الشيخ",null,null,null,null,null,null,null,null,null,null,null,null,"طن",80,"",194264,null,{"$f":"IFERROR(IF(الجدول1[[#This Row],[نوع_النقله]]=\"نقلة\",INDEX(الجدول35[[5 طن]:[وش]],MATCH(الجدول1[[#This Row],[المحافظة]],الجدول35[عمود1],0),MATCH(الجدول1[[#This Row],[نوع السيارة]],الجدول35[[#Headers],[5 طن]:[وش]],0)),INDEX(الجدول3[[5 طن]:[وش]],MATCH(الجدول1[[#This Row],[المحافظة]],الجدول3[عمود1],0),MATCH(الجدول1[[#This Row],[نوع السيارة]],الجدول3[[#Headers],[5 طن]:[وش]],0))),\"\")","v":""},"5 طن"]
[{"$f":"الجدول1[[#This Row],[الشيب]]","v":194316},"2020-06-01","محمود احمد",7421,null,"البدرشين",300,"الجيزه",null,null,null,null,null,null,null,null,null,null,null,null,"طن",75,0,194316,null,{"$f":"IFERROR(IF(الجدول1[[#This Row],[نوع_النقله]]=\"نقلة\",INDEX(الجدول35[[5 طن]:[وش]],MATCH(الجدول1[[#This Row],[المحافظة]],الجدول35[عمود1],0),MATCH(الجدول1[[#This Row],[نوع السيارة]],الجدول35[[#Headers],[5 طن]:[وش]],0)),INDEX(الجدول3[[5 طن]:[وش]],MATCH(الجدول1[[#This Row],[المحافظة]],الجدول3[عمود1],0),MATCH(الجدول1[[#This Row],[نوع السيارة]],الجدول3[[#Headers],[5 طن]:[وش]],0))),\"\")","v":110},"5 طن"]
[{"$f":"الجدول1[[#This Row],[الشيب]]","v":0},"2020-06-01","احمد محمد فراج",null,null,"اسكندريه",600,null,null,null,null,null,null,null,null,null,null,null,null,null,"طن",null,"",null,null,{"$f":"IFERROR(IF(الجدول1[[#This Row],[نوع_النقله]]=\"نقلة\",INDEX(الجدول35[[5 طن]:[وش]],MATCH(الجدول1[[#This Row],[المحافظة]],الجدول35[عمود1],0),MATCH(الجدول1[[#This Row],[نوع السيارة]],الجدول35[[#Headers],[5 طن]:[وش]],0)),INDEX(الجدول3[[5 طن]:[وش]],MATCH(الجدول1[[#This Row],[المحافظة]],الجدول3[عمود1],0),MATCH(الجدول1[[#This Row],[نوع السيارة]],الجدول3[[#Headers],[5 طن]:[وش]],0))),\"\")","v":""},"5 طن"]
[{"$f":"الجدول1[[#This Row],[الشيب]]","v":0},"2020-06-01","جمال عبدالرازق",null,null,"بحيره",500,null,null,null,null,null,null,null,null,null,null,null,null,null,"طن",null,"",null,null,{"$f":"IFERROR(IF(الجدول1[[#This Row],[نوع_النقله]]=\"نقلة\",INDEX(الجدول35[[5 طن]:[وش]],MATCH(الجدول1[[#This Row],[المحافظة]],الجدول35[عمود1],0),MATCH(الجدول1[[#This Row],[نوع السيارة]],الجدول35[[#Headers],[5 طن]:[وش]],0)),INDEX(الجدول3[[5 طن]:[وش]],MATCH(الجدول1[[#This Row],[المحافظة]],الجدول3[عمود1],0),MATCH(الجدول1[[#This Row],[نوع السيارة]],الجدول3[[#Headers],[5 طن]:[وش]],0))),\"\")","v":""},"5 طن"]
[{"$f":"الجدول1[[#This Row],[الشيب]]","v":194010},"2020-05-31","بشير السيد",3751,null,"بحيره",null,"البحيره",null,null,null,null,null,null,null,null,null,null,null,null,"طن",80,0,194010,null,{"$f":"IFERROR(IF(الجدول1[[#This Row],[نوع_النقله]]=\"نقلة\",INDEX(الجدول35[[5 طن]:[وش]],MATCH(الجدول1[[#This Row],[المحافظة]],الجدول35[عمود1],0),MATCH(الجدول1[[#This Row],[نوع السيارة]],الجدول35[[#Headers],[5 طن]:[وش]],0)),INDEX(الجدول3[[5 طن]:[وش]],MATCH(الجدول1[[#This Row],[المحافظة]],الجدول3[عمود1],0),MATCH(الجدول1[[#This Row],[نوع السيارة]],الجدول3[[#Headers],[5 طن]:[وش]],0))),\"\")","v":165},"5 طن"]
[{"$f":"الجدول1[[#This Row],[الشيب]]","v":194065},"2020-06-01","بشير السيد",3751,null,"ام زغو",300,"الاسكندريه",null,null,null,null,null,null,null,null,null,null,null,null,"طن",80,0,194065,null,{"$f":"IFERROR(IF(الجدول1[[#This Row],[نوع_النقله]]=\"نقلة\",INDEX(الجدول35[[5 طن]:[وش]],MATCH(الجدول1[[#This Row],[المحافظة]],الجدول35[عمود1],0),MATCH(الجدول1[[#This Row],[نوع السيارة]],الجدول35[[#Headers],[5 طن]:[وش]],0)),INDEX(الجدول3[[5 طن]:[وش]],MATCH(الجدول1[[#This Row],[المحافظة]],الجدول3[عمود1],0),MATCH(الجدول1[[#This Row],[نوع السيارة]],الجدول3[[#Headers],[5 طن]:[وش]],0))),\"\")","v":215},"5 طن"]
[{"$f":"الجدول1[[#This Row],[الشيب]]","v":0},"2020-06-01","حامد رفعت",1698,null,"بحيره",200,null,null,null,null,null,null,null,null,null,null,null,null,null,"طن",null,"",null,null,{"$f":"IFERROR(IF(الجدول1[[#This Row],[نوع_النقله]]=\"نقلة\",INDEX(الجدول35[[5 طن]:[وش]],MATCH(الجدول1[[#This Row],[المحافظة]],الجدول35[عمود1],0),MATCH(الجدول1[[#This Row],[نوع السيارة]],الجدول35[[#Headers],[5 طن]:[وش]],0)),INDEX(الجدول3[[5 طن]:[وش]],MATCH(الجدول1[[#This Row],[المحافظة]],الجدول3[عمود1],0),MATCH(الجدول1[[#This Row],[نوع السيارة]],الجدول3[[#Headers],[5 طن]:[وش]],0))),\"\")","v":""},"5 طن"]
[{"$f":"الجدول1[[#This Row],[الشيب]]","v":0},"2020-06-02","هاني سامي",null,null,"قاهره",300,null,null,null,null,null,null,null,null,null,null,null,null,null,"طن",null,"",null,null,{"$f":"IFERROR(IF(الجدول1[[#This Row],[نوع_النقله]]=\"نقلة\",INDEX(الجدول35[[5 طن]:[وش]],MATCH(الجدول1[[#This Row],[المحافظة]],الجدول35[عمود1],0),MATCH(الجدول1[[#This Row],[نوع السيارة]],الجدول35[[#Headers],[5 طن]:[وش]],0)),INDEX(الجدول3[[5 طن]:[وش]],MATCH(الجدول1[[#This Row],[المحافظة]],الجدول3[عمود1],0),MATCH(الجدول1[[#This Row],[نوع السيارة]],الجدول3[[#Headers],[5 طن]:[وش]],0))),\"\")","v":""},"5 طن"]
[{"$f":"الجدول1[[#This Row],[الشيب]]","v":0},"2020-06-02","محمود عبدالعظيم",null,null,"كفرالشيخ",500,null,null,null,null,null,null,null,null,null,null,null,null,null,"طن",null,"",null,null,{"$f":"IFERROR(IF(الجدول1[[#This Row],[نوع_النقله]]=\"نقلة\",INDEX(الجدول35[[5 طن]:[وش]],MATCH(الجدول1[[#This Row],[المحافظة]],الجدول35[عمود1],0),MATCH(الجدول1[[#This Row],[نوع السيارة]],الجدول35[[#Headers],[5 طن]:[وش]],0)),INDEX(الجدول3[[5 طن]:[وش]],MATCH(الجدول1[[#This Row],[المحافظة]],الجدول3[عمود1],0),MATCH(الجدول1[[#This Row],[نوع السيارة]],الجدول3[[#Headers],[5 طن]:[وش]],0))),\"\")","v":""},"5 طن"]
[{"$f":"الجدول1[[#This Row],[الشيب]]","v":194436},"2020-06-02","رمضان حمدي",1328,null,"الفرجاني",100,"القاهره",null,null,null,null,null,null,null,null,null,null,null,null,"طن",65,0,194436,null,{"$f":"IFERROR(IF(الجدول1[[#This Row],[نوع_النقله]]=\"نقلة\",INDEX(الجدول35[[5 طن]:[وش]],MATCH(الجدول1[[#This Row],[المحافظة]],الجدول35[عمود1],0),MATCH(الجدول1[[#This Row],[نوع السيارة]],الجدول35[[#Headers],[5 طن]:[وش]],0)),INDEX(الجدول3[[5 طن]:[وش]],MATCH(الجدول1[[#This Row],[المحافظة]],الجدول3[عمود1],0),MATCH(الجدول1[[#This Row],[نوع السيارة]],الجدول3[[#Headers],[5 طن]:[وش]],0))),\"\")","v":100},"5 طن"]
[{"$f":"الجدول1[[#This Row],[الشيب]]","v":194466},"2020-06-02","محمد فوزي",4139,null,"يثرب",300,"الجيزه",null,null,null,null,null,null,null,null,null,null,null,null,"طن",75,0,194466,null,{"$f":"IFERROR(IF(الجدول1[[#This Row],[نوع_النقله]]=\"نقلة\",INDEX(الجدول35[[5 طن]:[وش]],MATCH(الجدول1[[#This Row],[المحافظة]],الجدول35[عمود1],0),MATCH(الجدول1[[#This Row],[نوع السيارة]],الجدول35[[#Headers],[5 طن]:[وش]],0)),INDEX(الجدول3[[5 طن]:[وش]],MATCH(الجدول1[[#This Row],[المحافظة]],الجدول3[عمود1],0),MATCH(الجدول1[[#This Row],[نوع السيارة]],الجدول3[[#Headers],[5 طن]:[وش]],0))),\"\")","v":110},"5 طن"]
[{"$f":"الجدول1[[#This Row],[الشيب]]","v":194380},"2020-06-02","ابراهيم حامد",3927,null,"قاهره",300,"القاهره",null,null,null,null,null,null,null,null,null,null,null,null,"طن",75,0,194380,null,{"$f":"IFERROR(IF(الجدول1[[#This Row],[نوع_النقله]]=\"نقلة\",INDEX(الجدول35[[5 طن]:[وش]],MATCH(الجدول1[[#This Row],[المحافظة]],الجدول35[عمود1],0),MATCH(الجدول1[[#This Row],[نوع السيارة]],الجدول35[[#Headers],[5 طن]:[وش]],0)),INDEX(الجدول3[[5 طن]:[وش]],MATCH(الجدول1[[#This Row],[المحافظة]],الجدول3[عمود1],0),MATCH(الجدول1[[#This Row],[نوع السيارة]],الجدول3[[#Headers],[5 طن]:[وش]],0))),\"\")","v":100},"5 طن"]
[{"$f":"الجدول1[[#This Row],[الشيب]]","v":0},"2020-06-02","محمد عادل",1279,null,"اسكندريه",200,null,null,null,null,null,null,null,null,null,null,400,"لفه3",null,"طن",null,"",null,null,{"$f":"IFERROR(IF(الجدول1[[#This Row],[نوع_النقله]]=\"نقلة\",INDEX(الجدول35[[5 طن]:[وش]],MATCH(الجدول1[[#This Row],[المحافظة]],الجدول35[عمود1],0),MATCH(الجدول1[[#This Row],[نوع السيارة]],الجدول35[[#Headers],[5 طن]:[وش]],0)),INDEX(الجدول3[[5 طن]:[وش]],MATCH(الجدول1[[#This Row],[المحافظة]],الجدول3[عمود1],0),MATCH(الجدول1[[#This Row],[نوع السيارة]],الجدول3[[#Headers],[5 طن]:[وش]],0))),\"\")","v":""},"5 طن"]
[{"$f":"الجدول1[[#This Row],[الشيب]]","v":194409},"2020-06-02","حامد رفعت",1698,null,"اسكندريه",250,"الاسكندريه",null,null,null,null,null,null,null,null,null,null,null,null,"طن",80,0,194409,null,{"$f":"IFERROR(IF(الجدول1[[#This Row],[نوع_النقله]]=\"نقلة\",INDEX(الجدول35[[5 طن]:[وش]],MATCH(الجدول1[[#This Row],[المحافظة]],الجدول35[عمود1],0),MATCH(الجدول1[[#This Row],[نوع السيارة]],الجدول35[[#Headers],[5 طن]:[وش]],0)),INDEX(الجدول3[[5 طن]:[وش]],MATCH(الجدول1[[#This Row],[المحافظة]],الجدول3[عمود1],0),MATCH(الجدول1[[#This Row],[نوع السيارة]],الجدول3[[#Headers],[5 طن]:[وش]],0))),\"\")","v":215},"5 طن"]
[{"$f":"الجدول1[[#This Row],[الشيب]]","v":194410},"2020-06-02","ابراهيم حسن",6718,null,"اسكندريه",150,"الاسكندريه",null,null,null,null,null,null,null,null,null,null,null,null,"طن",80,0,194410,null,{"$f":"IFERROR(IF(الجدول1[[#This Row],[نوع_النقله]]=\"نقلة\",INDEX(الجدول35[[5 طن]:[وش]],MATCH(الجدول1[[#This Row],[المحافظة]],الجدول35[عمود1],0),MATCH(الجدول1[[#This Row],[نوع السيارة]],الجدول35[[#Headers],[5 طن]:[وش]],0)),INDEX(الجدول3[[5 طن]:[وش]],MATCH(الجدول1[[#This Row],[المحافظة]],الجدول3[عمود1],0),MATCH(الجدول1[[#This Row],[نوع السيارة]],الجدول3[[#Headers],[5 طن]:[وش]],0))),\"\")","v":215},"5 طن"]
[{"$f":"الجدول1[[#This Row],[الشيب]]","v":194296},"2020-06-01","بشير السيد",3751,null,"ام زغو",null,"الاسكندريه",null,null,null,null,null,null,null,null,null,null,null,null,"طن",65,0,194296,null,{"$f":"IFERROR(IF(الجدول1[[#This Row],[نوع_النقله]]=\"نقلة\",INDEX(الجدول35[[5 طن]:[وش]],MATCH(الجدول1[[#This Row],[المحافظة]],الجدول35[عمود1],0),MATCH(الجدول1[[#This Row],[نوع السيارة]],الجدول35[[#Headers],[5 طن]:[وش]],0)),INDEX(الجدول3[[5 طن]:[وش]],MATCH(الجدول1[[#This Row],[المحافظة]],الجدول3[عمود1],0),MATCH(الجدول1[[#This Row],[نوع السيارة]],الجدول3[[#Headers],[5 طن]:[وش]],0))),\"\")","v":215},"5 طن"]
[{"$f":"الجدول1[[#This Row],[الشيب]]","v":0},"2020-06-02","بشير السيد",3751,null,"اسماعيليه",150,null,null,null,null,null,null,null,null,null,null,1000,null,null,"طن",null,"",null,null,{"$f":"IFERROR(IF(الجدول1[[#This Row],[نوع_النقله]]=\"نقلة\",INDEX(الجدول35[[5 طن]:[وش]],MATCH(الجدول1[[#This Row],[المحافظة]],الجدول35[عمود1],0),MATCH(الجدول1[[#This Row],[نوع السيارة]],الجدول35[[#Headers],[5 طن]:[وش]],0)),INDEX(الجدول3[[5 طن]:[وش]],MATCH(الجدول1[[#This Row],[المحافظة]],الجدول3[عمود1],0),MATCH(الجدول1[[#This Row],[نوع السيارة]],الجدول3[[#Headers],[5 طن]:[وش]],0))),\"\")","v":""},"5 طن"]
[{"$f":"الجدول1[[#This Row],[الشيب]]","v":0},"2020-06-02","محمود حسن محمد",null,null,"قاهره",100,null,null,null,null,null,null,null,null,null,null,null,null,null,"طن",null,"",null,null,{"$f":"IFERROR(IF(الجدول1[[#This Row],[نوع_النقله]]=\"نقلة\",INDEX(الجدول35[[5 طن]:[وش]],MATCH(الجدول1[[#This Row],[المحافظة]],الجدول35[عمود1],0),MATCH(الجدول1[[#This Row],[نوع السيارة]],الجدول35[[#Headers],[5 طن]:[وش]],0)),INDEX(الجدول3[[5 طن]:[وش]],MATCH(الجدول1[[#This Row],[المحافظة]],الجدول3[عمود1],0),MATCH(الجدول1[[#This Row],[نوع السيارة]],الجدول3[[#Headers],[5 طن]:[وش]],0))),\"\")","v":""},"5 طن"]
[{"$f":"الجدول1[[#This Row],[الشيب]]","v":194544},"2020-06-02","رمضان محمود",7293,null,"قاهره",150,"القاهره",null,null,null,null,null,null,null,null,null,null,null,null,"طن",75,0,194544,null,{"$f":"IFERROR(IF(الجدول1[[#This Row],[نوع_النقله]]=\"نقلة\",INDEX(الجدول35[[5 طن]:[وش]],MATCH(الجدول1[[#This Row],[المحافظة]],الجدول35[عمود1],0),MATCH(الجدول1[[#This Row],[نوع السيارة]],الجدول35[[#Headers],[5 طن]:[وش]],0)),INDEX(الجدول3[[5 طن]:[وش]],MATCH(الجدول1[[#This Row],[المحافظة]],الجدول3[عمود1],0),MATCH(الجدول1[[#This Row],[نوع السيارة]],الجدول3[[#Headers],[5 طن]:[وش]],0))),\"\")","v":100},"5 طن"]
[{"$f":"الجدول1[[#This Row],[الشيب]]","v":0},"2020-06-02","فريد محمد",null,null,"مترو",300,null,null,null,null,null,null,null,null,null,null,null,null,null,"طن",null,"",null,null,{"$f":"IFERROR(IF(الجدول1[[#This Row],[نوع_النقله]]=\"نقلة\",INDEX(الجدول35[[5 طن]:[وش]],MATCH(الجدول1[[#This Row],[المحافظة]],الجدول35[عمود1],0),MATCH(الجدول1[[#This Row],[نوع السيارة]],الجدول35[[#Headers],[5 طن]:[وش]],0)),INDEX(الجدول3[[5 طن]:[وش]],MATCH(الجدول1[[#This Row],[المحافظة]],الجدول3[عمود1],0),MATCH(الجدول1[[#This Row],[نوع السيارة]],الجدول3[[#Headers],[5 طن]:[وش]],0))),\"\")","v":""},"5 طن"]
[{"$f":"الجدول1[[#This Row],[الشيب]]","v":0},"2020-06-02","جمال عبدالحكيم",null,null,"مترو",400,null,null,null,null,null,null,null,null,null,null,null,null,null,"طن",null,"",null,null,{"$f":"IFERROR(IF(الجدول1[[#This Row],[نوع_النقله]]=\"نقلة\",INDEX(الجدول35[[5 طن]:[وش]],MATCH(الجدول1[[#This Row],[المحافظة]],الجدول35[عمود1],0),MATCH(الجدول1[[#This Row],[نوع السيارة]],الجدول35[[#Headers],[5 طن]:[وش]],0)),INDEX(الجدول3[[5 طن]:[وش]],MATCH(الجدول1[[#This Row],[المحافظة]],الجدول3[عمود1],0),MATCH(الجدول1[[#This Row],[نوع السيارة]],الجدول3[[#Headers],[5 طن]:[وش]],0))),\"\")","v":""},"5 طن"]
[{"$f":"الجدول1[[#This Row],[الشيب]]","v":194471},"2020-06-02","علاء شحاته",7462,null,"النهضه",700,"الاسكندريه",null,null,null,null,null,null,null,null,null,null,null,null,"طن",80,0,194471,null,{"$f":"IFERROR(IF(الجدول1[[#This Row],[نوع_النقله]]=\"نقلة\",INDEX(الجدول35[[5 طن]:[وش]],MATCH(الجدول1[[#This Row],[المحافظة]],الجدول35[عمود1],0),MATCH(الجدول1[[#This Row],[نوع السيارة]],الجدول35[[#Headers],[5 طن]:[وش]],0)),INDEX(الجدول3[[5 طن]:[وش]],MATCH(الجدول1[[#This Row],[المحافظة]],الجدول3[عمود1],0),MATCH(الجدول1[[#This Row],[نوع السيارة]],الجدول3[[#Headers],[5 طن]:[وش]],0))),\"\")","v":215},"5 طن"]
[{"$f":"الجدول1[[#This Row],[الشيب]]","v":0},"2020-06-02","عبده فهمي",null,null,"دمياط",2000,null,null,null,null,null,null,null,null,null,null,null,"جرار",null,"طن",null,"",null,null,{"$f":"IFERROR(IF(الجدول1[[#This Row],[نوع_النقله]]=\"نقلة\",INDEX(الجدول35[[5 طن]:[وش]],MATCH(الجدول1[[#This Row],[المحافظة]],الجدول35[عمود1],0),MATCH(الجدول1[[#This Row],[نوع السيارة]],الجدول35[[#Headers],[5 طن]:[وش]],0)),INDEX(الجدول3[[5 طن]:[وش]],MATCH(الجدول1[[#This Row],[المحافظة]],الجدول3[عمود1],0),MATCH(الجدول1[[#This Row],[نوع السيارة]],الجدول3[[#Headers],[5 طن]:[وش]],0))),\"\")","v":""},"5 طن"]
[{"$f":"الجدول1[[#This Row],[الشيب]]","v":0},"2020-06-02","حسن مصطفي",null,null,"كفرالشيخ",2000,null,null,null,null,null,null,null,null,null,null,null,"جرار",null,"طن",null,"",null,null,{"$f":"IFERROR(IF(الجدول1[[#This Row],[نوع_النقله]]=\"نقلة\",INDEX(الجدول35[[5 طن]:[وش]],MATCH(الجدول1[[#This Row],[المحافظة]],الجدول35[عمود1],0),MATCH(الجدول1[[#This Row],[نوع السيارة]],الجدول35[[#Headers],[5 طن]:[وش]],0)),INDEX(الجدول3[[5 طن]:[وش]],MATCH(الجدول1[[#This Row],[المحافظة]],الجدول3[عمود1],0),MATCH(الجدول1[[#This Row],[نوع السيارة]],الجدول3[[#Headers],[5 طن]:[وش]],0))),\"\")","v":""},"5 طن"]
[{"$f":"الجدول1[[#This Row],[الشيب]]","v":567676},"2020-06-02","ابراهيم عطيه",null,null,"بني سويف",1000,"الجيزه",null,null,null,null,null,null,null,null,null,null,"وش",null,"طن",null,0,567676,null,{"$f":"IFERROR(IF(الجدول1[[#This Row],[نوع_النقله]]=\"نقلة\",INDEX(الجدول35[[5 طن]:[وش]],MATCH(الجدول1[[#This Row],[المحافظة]],الجدول35[عمود1],0),MATCH(الجدول1[[#This Row],[نوع السيارة]],الجدول35[[#Headers],[5 طن]:[وش]],0)),INDEX(الجدول3[[5 طن]:[وش]],MATCH(الجدول1[[#This Row],[المحافظة]],الجدول3[عمود1],0),MATCH(الجدول1[[#This Row],[نوع السيارة]],الجدول3[[#Headers],[5 طن]:[وش]],0))),\"\")","v":110},"5 طن"]
[{"$f":"الجدول1[[#This Row],[الشيب]]","v":0},"2020-06-02","حسن عبدالحليم",null,null,"المحله",200,null,null,null,null,null,null,null,null,null,null,null,null,null,"طن",null,{"$f":"IFERROR(ROUND($Y70*$Z70,0),\"\")","v":""},null,null,{"$f":"IFERROR(IF(الجدول1[[#This Row],[نوع_النقله]]=\"نقلة\",INDEX(الجدول35[[5 طن]:[وش]],MATCH(الجدول1[[#This Row],[المحافظة]],الجدول35[عمود1],0),MATCH(الجدول1[[#This Row],[نوع السيارة]],الجدول35[[#Headers],[5 طن]:[وش]],0)),INDEX(الجدول3[[5 طن]:[وش]],MATCH(الجدول1[[#This Row],[المحافظة]],الجدول3[عمود1],0),MATCH(الجدول1[[#This Row],[نوع السيارة]],الجدول3[[#Headers],[5 طن]:[وش]],0))),\"\")","v":""},"5 طن"]
[{"$f":"الجدول1[[#This Row],[الشيب]]","v":194478},"2020-06-02","اسلام محمد ",1487,null,"نوبار",300,"القاهره",null,null,null,null,null,null,null,null,null,null,null,null,"طن",75,0,194478,null,{"$f":"IFERROR(IF(الجدول1[[#This Row],[نوع_النقله]]=\"نقلة\",INDEX(الجدول35[[5 طن]:[وش]],MATCH(الجدول1[[#This Row],[المحافظة]],الجدول35[عمود1],0),MATCH(الجدول1[[#This Row],[نوع السيارة]],الجدول35[[#Headers],[5 طن]:[وش]],0)),INDEX(الجدول3[[5 طن]:[وش]],MATCH(الجدول1[[#This Row],[المحافظة]],الجدول3[عمود1],0),MATCH(الجدول1[[#This Row],[نوع السيارة]],الجدول3[[#Headers],[5 طن]:[وش]],0))),\"\")","v":100},"5 طن"]
[{"$f":"الجدول1[[#This Row],[الشيب]]","v":0},"2020-06-02","عبده السيد",null,null,"قاهره",100,null,null,null,null,null,null,null,null,null,null,null,null,null,"طن",null,"",null,null,{"$f":"IFERROR(IF(الجدول1[[#This Row],[نوع_النقله]]=\"نقلة\",INDEX(الجدول35[[5 طن]:[وش]],MATCH(الجدول1[[#This Row],[المحافظة]],الجدول35[عمود1],0),MATCH(الجدول1[[#This Row],[نوع السيارة]],الجدول35[[#Headers],[5 طن]:[وش]],0)),INDEX(الجدول3[[5 طن]:[وش]],MATCH(الجدول1[[#This Row],[المحافظة]],الجدول3[عمود1],0),MATCH(الجدول1[[#This Row],[نوع السيارة]],الجدول3[[#Headers],[5 طن]:[وش]],0))),\"\")","v":""},"5 طن"]
[{"$f":"الجدول1[[#This Row],[الشيب]]","v":194512},"2020-06-02","احمد رافت",7918,null,"مترو",150,"اكتوبر",null,null,null,null,null,null,null,null,null,null,null,null,"طن",75,0,194512,null,{"$f":"IFERROR(IF(الجدول1[[#This Row],[نوع_النقله]]=\"نقلة\",INDEX(الجدول35[[5 طن]:[وش]],MATCH(الجدول1[[#This Row],[المحافظة]],الجدول35[عمود1],0),MATCH(الجدول1[[#This Row],[نوع السيارة]],الجدول35[[#Headers],[5 طن]:[وش]],0)),INDEX(الجدول3[[5 طن]:[وش]],MATCH(الجدول1[[#This Row],[المحافظة]],الجدول3[عمود1],0),MATCH(الجدول1[[#This Row],[نوع السيارة]],الجدول3[[#Headers],[5 طن]:[وش]],0))),\"\")","v":120},"5 طن"]
[{"$f":"الجدول1[[#This Row],[الشيب]]","v":194473},"2020-06-02","محمود احمد",7421,null,"مترو",400,"اكتوبر",null,null,null,null,null,null,null,null,null,null,null,null,"طن",75,0,194473,null,{"$f":"IFERROR(IF(الجدول1[[#This Row],[نوع_النقله]]=\"نقلة\",INDEX(الجدول35[[5 طن]:[وش]],MATCH(الجدول1[[#This Row],[المحافظة]],الجدول35[عمود1],0),MATCH(الجدول1[[#This Row],[نوع السيارة]],الجدول35[[#Headers],[5 طن]:[وش]],0)),INDEX(الجدول3[[5 طن]:[وش]],MATCH(الجدول1[[#This Row],[المحافظة]],الجدول3[عمود1],0),MATCH(الجدول1[[#This Row],[نوع السيارة]],الجدول3[[#Headers],[5 طن]:[وش]],0))),\"\")","v":120},"5 طن"]
[{"$f":"الجدول1[[#This Row],[الشيب]]","v":194451},"2020-06-02","جمال عبدالناصر",8152,null,"بور سعيد",null,"بور سعيد",null,null,null,null,null,null,null,null,null,null,null,null,"طن",65,"",194451,null,{"$f":"IFERROR(IF(الجدول1[[#This Row],[نوع_النقله]]=\"نقلة\",INDEX(الجدول35[[5 طن]:[وش]],MATCH(الجدول1[[#This Row],[المحافظة]],الجدول35[عمود1],0),MATCH(الجدول1[[#This Row],[نوع السيارة]],الجدول35[[#Headers],[5 طن]:[وش]],0)),INDEX(الجدول3[[5 طن]:[وش]],MATCH(الجدول1[[#This Row],[المحافظة]],الجدول3[عمود1],0),MATCH(الجدول1[[#This Row],[نوع السيارة]],الجدول3[[#Headers],[5 طن]:[وش]],0))),\"\")","v":""},"5 طن"]
[{"$f":"الجدول1[[#This Row],[الشيب]]","v":194534},"2020-06-02","محمد صلاح",8576,null,"اولاد رجب",100,"القاهره",null,null,null,null,null,null,null,null,null,null,null,null,"طن",75,0,194534,null,{"$f":"IFERROR(IF(الجدول1[[#This Row],[نوع_النقله]]=\"نقلة\",INDEX(الجدول35[[5 طن]:[وش]],MATCH(الجدول1[[#This Row],[المحافظة]],الجدول35[عمود1],0),MATCH(الجدول1[[#This Row],[نوع السيارة]],الجدول35[[#Headers],[5 طن]:[وش]],0)),INDEX(الجدول3[[5 طن]:[وش]],MATCH(الجدول1[[#This Row],[المحافظة]],الجدول3[عمود1],0),MATCH(الجدول1[[#This Row],[نوع السيارة]],الجدول3[[#Headers],[5 طن]:[وش]],0))),\"\")","v":100},"5 طن"]
[{"$f":"الجدول1[[#This Row],[الشيب]]","v":194515},"2020-06-02","ابراهيم محمد",6847,null,"العاشر",100,"العاشر",null,null,null,null,null,null,null,null,null,null,null,null,"طن",null,0,194515,null,{"$f":"IFERROR(IF(الجدول1[[#This Row],[نوع_النقله]]=\"نقلة\",INDEX(الجدول35[[5 طن]:[وش]],MATCH(الجدول1[[#This Row],[المحافظة]],الجدول35[عمود1],0),MATCH(الجدول1[[#This Row],[نوع السيارة]],الجدول35[[#Headers],[5 طن]:[وش]],0)),INDEX(الجدول3[[5 طن]:[وش]],MATCH(الجدول1[[#This Row],[المحافظة]],الجدول3[عمود1],0),MATCH(الجدول1[[#This Row],[نوع السيارة]],الجدول3[[#Headers],[5 طن]:[وش]],0))),\"\")","v":40},"5 طن"]
[{"$f":"الجدول1[[#This Row],[الشيب]]","v":194486},"2020-06-02","هاني عبدالمنعم",9626,null,"كفرالشيخ",500,"كفر الشيخ",null,null,null,null,null,null,null,null,null,null,null,null,"طن",80,"",194486,null,{"$f":"IFERROR(IF(الجدول1[[#This Row],[نوع_النقله]]=\"نقلة\",INDEX(الجدول35[[5 طن]:[وش]],MATCH(الجدول1[[#This Row],[المحافظة]],الجدول35[عمود1],0),MATCH(الجدول1[[#This Row],[نوع السيارة]],الجدول35[[#Headers],[5 طن]:[وش]],0)),INDEX(الجدول3[[5 طن]:[وش]],MATCH(الجدول1[[#This Row],[المحافظة]],الجدول3[عمود1],0),MATCH(الجدول1[[#This Row],[نوع السيارة]],الجدول3[[#Headers],[5 طن]:[وش]],0))),\"\")","v":""},"5 طن"]
[{"$f":"الجدول1[[#This Row],[الشيب]]","v":0},"2020-06-02","السعيد احمد",null,null,"بدون شغل",300,null,null,null,null,null,null,null,null,null,null,null,"ابومازن",null,"طن",null,"",null,null,{"$f":"IFERROR(IF(الجدول1[[#This Row],[نوع_النقله]]=\"نقلة\",INDEX(الجدول35[[5 طن]:[وش]],MATCH(الجدول1[[#This Row],[المحافظة]],الجدول35[عمود1],0),MATCH(الجدول1[[#This Row],[نوع السيارة]],الجدول35[[#Headers],[5 طن]:[وش]],0)),INDEX(الجدول3[[5 طن]:[وش]],MATCH(الجدول1[[#This Row],[المحافظة]],الجدول3[عمود1],0),MATCH(الجدول1[[#This Row],[نوع السيارة]],الجدول3[[#Headers],[5 طن]:[وش]],0))),\"\")","v":""},"5 طن"]
[{"$f":"الجدول1[[#This Row],[الشيب]]","v":194273},"2020-06-01","ابراهيم محمد",6847,null,"القاهره",null,"القاهره",null,null,null,null,null,null,null,null,null,null,null,null,"طن",75,0,194273,null,{"$f":"IFERROR(IF(الجدول1[[#This Row],[نوع_النقله]]=\"نقلة\",INDEX(الجدول35[[5 طن]:[وش]],MATCH(الجدول1[[#This Row],[المحافظة]],الجدول35[عمود1],0),MATCH(الجدول1[[#This Row],[نوع السيارة]],الجدول35[[#Headers],[5 طن]:[وش]],0)),INDEX(الجدول3[[5 طن]:[وش]],MATCH(الجدول1[[#This Row],[المحافظة]],الجدول3[عمود1],0),MATCH(الجدول1[[#This Row],[نوع السيارة]],الجدول3[[#Headers],[5 طن]:[وش]],0))),\"\")","v":100},"5 طن"]
[{"$f":"الجدول1[[#This Row],[الشيب]]","v":0},"2020-06-03","عيد فتحي",null,null,"قاهره",null,null,null,null,null,null,null,null,null,null,null,null,null,null,"طن",null,"",null,null,{"$f":"IFERROR(IF(الجدول1[[#This Row],[نوع_النقله]]=\"نقلة\",INDEX(الجدول35[[5 طن]:[وش]],MATCH(الجدول1[[#This Row],[المحافظة]],الجدول35[عمود1],0),MATCH(الجدول1[[#This Row],[نوع السيارة]],الجدول35[[#Headers],[5 طن]:[وش]],0)),INDEX(الجدول3[[5 طن]:[وش]],MATCH(الجدول1[[#This Row],[المحافظة]],الجدول3[عمود1],0),MATCH(الجدول1[[#This Row],[نوع السيارة]],الجدول3[[#Headers],[5 طن]:[وش]],0))),\"\")","v":""},"5 طن"]
[{"$f":"الجدول1[[#This Row],[الشيب]]","v":0},"2020-06-03","رمضان حمدي",1328,null,"قاهره",100,null,null,null,null,null,null,null,null,null,null,null,null,null,"طن",null,"",null,null,{"$f":"IFERROR(IF(الجدول1[[#This Row],[نوع_النقله]]=\"نقلة\",INDEX(الجدول35[[5 طن]:[وش]],MATCH(الجدول1[[#This Row],[المحافظة]],الجدول35[عمود1],0),MATCH(الجدول1[[#This Row],[نوع السيارة]],الجدول35[[#Headers],[5 طن]:[وش]],0)),INDEX(الجدول3[[5 طن]:[وش]],MATCH(الجدول1[[#This Row],[المحافظة]],الجدول3[عمود1],0),MATCH(الجدول1[[#This Row],[نوع السيارة]],الجدول3[[#Headers],[5 طن]:[وش]],0))),\"\")","v":""},"5 طن"]
[{"$f":"الجدول1[[#This Row],[الشيب]]","v":0},"2020-06-03","خميس عبدالنبي",null,null,"اسكندريه",700,null,null,null,null,null,null,null,null,null,null,null,null,null,"طن",null,"",null,null,{"$f":"IFERROR(IF(الجدول1[[#This Row],[نوع_النقله]]=\"نقلة\",INDEX(الجدول35[[5 طن]:[وش]],MATCH(الجدول1[[#This Row],[المحافظة]],الجدول35[عمود1],0),MATCH(الجدول1[[#This Row],[نوع السيارة]],الجدول35[[#Headers],[5 طن]:[وش]],0)),INDEX(الجدول3[[5 طن]:[وش]],MATCH(الجدول1[[#This Row],[المحافظة]],الجدول3[عمود1],0),MATCH(الجدول1[[#This Row],[نوع السيارة]],الجدول3[[#Headers],[5 طن]:[وش]],0))),\"\")","v":""},"5 طن"]
[{"$f":"الجدول1[[#This Row],[الشيب]]","v":0},"2020-06-03","مصطفي عزت",null,null,"طوخ",300,null,null,null,null,null,null,null,null,null,null,null,null,null,"طن",null,"",null,null,{"$f":"IFERROR(IF(الجدول1[[#This Row],[نوع_النقله]]=\"نقلة\",INDEX(الجدول35[[5 طن]:[وش]],MATCH(الجدول1[[#This Row],[المحافظة]],الجدول35[عمود1],0),MATCH(الجدول1[[#This Row],[نوع السيارة]],الجدول35[[#Headers],[5 طن]:[وش]],0)),INDEX(الجدول3[[5 طن]:[وش]],MATCH(الجدول1[[#This Row],[المحافظة]],الجدول3[عمود1],0),MATCH(الجدول1[[#This Row],[نوع السيارة]],الجدول3[[#Headers],[5 طن]:[وش]],0))),\"\")","v":""},"5 طن"]
[{"$f":"الجدول1[[#This Row],[الشيب]]","v":0},"2020-06-03","ابراهيم حامد",null,null,"قليوب",300,null,null,null,null,null,null,null,null,null,null,null,null,null,"طن",null,"",null,null,{"$f":"IFERROR(IF(الجدول1[[#This Row],[نوع_النقله]]=\"نقلة\",INDEX(الجدول35[[5 طن]:[وش]],MATCH(الجدول1[[#This Row],[المحافظة]],الجدول35[عمود1],0),MATCH(الجدول1[[#This Row],[نوع السيارة]],الجدول35[[#Headers],[5 طن]:[وش]],0)),INDEX(الجدول3[[5 طن]:[وش]],MATCH(الجدول1[[#This Row],[المحافظة]],الجدول3[عمود1],0),MATCH(الجدول1[[#This Row],[نوع السيارة]],الجدول3[[#Headers],[5 طن]:[وش]],0))),\"\")","v":""},"5 طن"]
[{"$f":"الجدول1[[#This Row],[الشيب]]","v":0},"2020-06-03","ابراهيم حسن",6718,null,"اسكندريه",500,null,null,null,null,null,null,null,null,null,null,1000,"لفه4",null,"طن",null,"",null,null,{"$f":"IFERROR(IF(الجدول1[[#This Row],[نوع_النقله]]=\"نقلة\",INDEX(الجدول35[[5 طن]:[وش]],MATCH(الجدول1[[#This Row],[المحافظة]],الجدول35[عمود1],0),MATCH(الجدول1[[#This Row],[نوع السيارة]],الجدول35[[#Headers],[5 طن]:[وش]],0)),INDEX(الجدول3[[5 طن]:[وش]],MATCH(الجدول1[[#This Row],[المحافظة]],الجدول3[عمود1],0),MATCH(الجدول1[[#This Row],[نوع السيارة]],الجدول3[[#Headers],[5 طن]:[وش]],0))),\"\")","v":""},"5 طن"]
[{"$f":"الجدول1[[#This Row],[الشيب]]","v":0},"2020-06-03","اسلام محمد",1487,null,"قاهره",300,null,null,null,null,null,null,null,null,null,null,null,null,null,"طن",null,"",null,null,{"$f":"IFERROR(IF(الجدول1[[#This Row],[نوع_النقله]]=\"نقلة\",INDEX(الجدول35[[5 طن]:[وش]],MATCH(الجدول1[[#This Row],[المحافظة]],الجدول35[عمود1],0),MATCH(الجدول1[[#This Row],[نوع السيارة]],الجدول35[[#Headers],[5 طن]:[وش]],0)),INDEX(الجدول3[[5 طن]:[وش]],MATCH(الجدول1[[#This Row],[المحافظة]],الجدول3[عمود1],0),MATCH(الجدول1[[#This Row],[نوع السيارة]],الجدول3[[#Headers],[5 طن]:[وش]],0))),\"\")","v":""},"5 طن"]
[{"$f":"الجدول1[[#This Row],[الشيب]]","v":0},"2020-06-03","محمود حسن",null,null,"بور سعيد",150,null,null,null,null,null,null,null,null,null,null,null,null,null,"طن",null,"",null,null,{"$f":"IFERROR(IF(الجدول1[[#This Row],[نوع_النقله]]=\"نقلة\",INDEX(الجدول35[[5 طن]:[وش]],MATCH(الجدول1[[#This Row],[المحافظة]],الجدول35[عمود1],0),MATCH(الجدول1[[#This Row],[نوع السيارة]],الجدول35[[#Headers],[5 طن]:[وش]],0)),INDEX(الجدول3[[5 طن]:[وش]],MATCH(الجدول1[[#This Row],[المحافظة]],الجدول3[عمود1],0),MATCH(الجدول1[[#This Row],[نوع السيارة]],الجدول3[[#Headers],[5 طن]:[وش]],0))),\"\")","v":""},"5 طن"]
[{"$f":"الجدول1[[#This Row],[الشيب]]","v":0},"2020-06-03","محمد صلاح",8576,null,"بحيره",200,null,null,null,null,null,null,null,null,null,null,680,null,null,"طن",null,"",null,null,{"$f":"IFERROR(IF(الجدول1[[#This Row],[نوع_النقله]]=\"نقلة\",INDEX(الجدول35[[5 طن]:[وش]],MATCH(الجدول1[[#This Row],[المحافظة]],الجدول35[عمود1],0),MATCH(الجدول1[[#This Row],[نوع السيارة]],الجدول35[[#Headers],[5 طن]:[وش]],0)),INDEX(الجدول3[[5 طن]:[وش]],MATCH(الجدول1[[#This Row],[المحافظة]],الجدول3[عمود1],0),MATCH(الجدول1[[#This Row],[نوع السيارة]],الجدول3[[#Headers],[5 طن]:[وش]],0))),\"\")","v":""},"5 طن"]
[{"$f":"الجدول1[[#This Row],[الشيب]]","v":0},"2020-06-03","عبده السيد",null,null,"اكتوبر",100,null,null,null,null,null,null,null,null,null,null,680,null,null,"طن",null,"",null,null,{"$f":"IFERROR(IF(الجدول1[[#This Row],[نوع_النقله]]=\"نقلة\",INDEX(الجدول35[[5 طن]:[وش]],MATCH(الجدول1[[#This Row],[المحافظة]],الجدول35[عمود1],0),MATCH(الجدول1[[#This Row],[نوع السيارة]],الجدول35[[#Headers],[5 طن]:[وش]],0)),INDEX(الجدول3[[5 طن]:[وش]],MATCH(الجدول1[[#This Row],[المحافظة]],الجدول3[عمود1],0),MATCH(الجدول1[[#This Row],[نوع السيارة]],الجدول3[[#Headers],[5 طن]:[وش]],0))),\"\")","v":""},"5 طن"]
[{"$f":"الجدول1[[#This Row],[الشيب]]","v":0},"2020-06-03","محمد فوزي",4139,null,"يثرب",300,null,null,null,null,null,null,null,null,null,null,null,null,null,"طن",null,"",null,null,{"$f":"IFERROR(IF(الجدول1[[#This Row],[نوع_النقله]]=\"نقلة\",INDEX(الجدول35[[5 طن]:[وش]],MATCH(الجدول1[[#This Row],[المحافظة]],الجدول35[عمود1],0),MATCH(الجدول1[[#This Row],[نوع السيارة]],الجدول35[[#Headers],[5 طن]:[وش]],0)),INDEX(الجدول3[[5 طن]:[وش]],MATCH(الجدول1[[#This Row],[المحافظة]],الجدول3[عمود1],0),MATCH(الجدول1[[#This Row],[نوع السيارة]],الجدول3[[#Headers],[5 طن]:[وش]],0))),\"\")","v":""},"5 طن"]
[{"$f":"الجدول1[[#This Row],[الشيب]]","v":0},"2020-06-03","مصطفي عزت",null,null,"ام زغو",600,null,null,null,null,null,null,null,null,null,null,null,null,null,"طن",null,"",null,null,{"$f":"IFERROR(IF(الجدول1[[#This Row],[نوع_النقله]]=\"نقلة\",INDEX(الجدول35[[5 طن]:[وش]],MATCH(الجدول1[[#This Row],[المحافظة]],الجدول35[عمود1],0),MATCH(الجدول1[[#This Row],[نوع السيارة]],الجدول35[[#Headers],[5 طن]:[وش]],0)),INDEX(الجدول3[[5 طن]:[وش]],MATCH(الجدول1[[#This Row],[المحافظة]],الجدول3[عمود1],0),MATCH(الجدول1[[#This Row],[نوع السيارة]],الجدول3[[#Headers],[5 طن]:[وش]],0))),\"\")","v":""},"5 طن"]
[{"$f":"الجدول1[[#This Row],[الشيب]]","v":0},"2020-06-03","علاء شحاته",7462,null,"سوق دوت كوم",100,null,null,null,null,null,null,null,null,null,null,null,null,null,"طن",null,"",null,null,{"$f":"IFERROR(IF(الجدول1[[#This Row],[نوع_النقله]]=\"نقلة\",INDEX(الجدول35[[5 طن]:[وش]],MATCH(الجدول1[[#This Row],[المحافظة]],الجدول35[عمود1],0),MATCH(الجدول1[[#This Row],[نوع السيارة]],الجدول35[[#Headers],[5 طن]:[وش]],0)),INDEX(الجدول3[[5 طن]:[وش]],MATCH(الجدول1[[#This Row],[المحافظة]],الجدول3[عمود1],0),MATCH(الجدول1[[#This Row],[نوع السيارة]],الجدول3[[#Headers],[5 طن]:[وش]],0))),\"\")","v":""},"5 طن"]
[{"$f":"الجدول1[[#This Row],[الشيب]]","v":0},"2020-06-03","هاني سامي",null,null,"ترست",700,null,null,null,null,null,null,null,null,null,null,null,null,null,"طن",null,"",null,null,{"$f":"IFERROR(IF(الجدول1[[#This Row],[نوع_النقله]]=\"نقلة\",INDEX(الجدول35[[5 طن]:[وش]],MATCH(الجدول1[[#This Row],[المحافظة]],الجدول35[عمود1],0),MATCH(الجدول1[[#This Row],[نوع السيارة]],الجدول35[[#Headers],[5 طن]:[وش]],0)),INDEX(الجدول3[[5 طن]:[وش]],MATCH(الجدول1[[#This Row],[المحافظة]],الجدول3[عمود1],0),MATCH(الجدول1[[#This Row],[نوع السيارة]],الجدول3[[#Headers],[5 طن]:[وش]],0))),\"\")","v":""},"5 طن"]
[{"$f":"الجدول1[[#This Row],[الشيب]]","v":0},"2020-06-03","فريد محمد",null,null,"الغردقه",1500,null,null,null,null,null,null,null,null,null,null,null,null,null,"طن",null,"",null,null,{"$f":"IFERROR(IF(الجدول1[[#This Row],[نوع_النقله]]=\"نقلة\",INDEX(الجدول35[[5 طن]:[وش]],MATCH(الجدول1[[#This Row],[المحافظة]],الجدول35[عمود1],0),MATCH(الجدول1[[#This Row],[نوع السيارة]],الجدول35[[#Headers],[5 طن]:[وش]],0)),INDEX(الجدول3[[5 طن]:[وش]],MATCH(الجدول1[[#This Row],[المحافظة]],الجدول3[عمود1],0),MATCH(الجدول1[[#This Row],[نوع السيارة]],الجدول3[[#Headers],[5 طن]:[وش]],0))),\"\")","v":""},"5 طن"]
[{"$f":"الجدول1[[#This Row],[الشيب]]","v":0},"2020-06-03","محمود احمد",7421,null,"قاهره",300,null,null,null,null,null,null,null,null,null,null,null,null,null,"طن",null,"",null,null,{"$f":"IFERROR(IF(الجدول1[[#This Row],[نوع_النقله]]=\"نقلة\",INDEX(الجدول35[[5 طن]:[وش]],MATCH(الجدول1[[#This Row],[المحافظة]],الجدول35[عمود1],0),MATCH(الجدول1[[#This Row],[نوع السيارة]],الجدول35[[#Headers],[5 طن]:[وش]],0)),INDEX(الجدول3[[5 طن]:[وش]],MATCH(الجدول1[[#This Row],[المحافظة]],الجدول3[عمود1],0),MATCH(الجدول1[[#This Row],[نوع السيارة]],الجدول3[[#Headers],[5 طن]:[وش]],0))),\"\")","v":""},"5 طن"]
[{"$f":"الجدول1[[#This Row],[الشيب]]","v":194729},"2020-06-03","بشير السيد",3751,null,"العاشر",100,"العاشر",null,null,null,null,null,null,null,null,null,null,null,null,"طن",null,0,194729,null,{"$f":"IFERROR(IF(الجدول1[[#This Row],[نوع_النقله]]=\"نقلة\",INDEX(الجدول35[[5 طن]:[وش]],MATCH(الجدول1[[#This Row],[المحافظة]],الجدول35[عمود1],0),MATCH(الجدول1[[#This Row],[نوع السيارة]],الجدول35[[#Headers],[5 طن]:[وش]],0)),INDEX(الجدول3[[5 طن]:[وش]],MATCH(الجدول1[[#This Row],[المحافظة]],الجدول3[عمود1],0),MATCH(الجدول1[[#This Row],[نوع السيارة]],الجدول3[[#Headers],[5 طن]:[وش]],0))),\"\")","v":40},"5 طن"]
[{"$f":"الجدول1[[#This Row],[الشيب]]","v":0},"2020-06-03","احمد رافت",7918,null,"ابيس",150,null,null,null,null,null,null,null,null,null,null,680,null,null,"طن",null,"",null,null,{"$f":"IFERROR(IF(الجدول1[[#This Row],[نوع_النقله]]=\"نقلة\",INDEX(الجدول35[[5 طن]:[وش]],MATCH(الجدول1[[#This Row],[المحافظة]],الجدول35[عمود1],0),MATCH(الجدول1[[#This Row],[نوع السيارة]],الجدول35[[#Headers],[5 طن]:[وش]],0)),INDEX(الجدول3[[5 طن]:[وش]],MATCH(الجدول1[[#This Row],[المحافظة]],الجدول3[عمود1],0),MATCH(الجدول1[[#This Row],[نوع السيارة]],الجدول3[[#Headers],[5 طن]:[وش]],0))),\"\")","v":""},"5 طن"]
[{"$f":"الجدول1[[#This Row],[الشيب]]","v":0},"2020-06-03","حامد رفعت",1698,null,"ابيس",150,null,null,null,null,null,null,null,null,null,null,680,null,null,"طن",null,"",null,null,{"$f":"IFERROR(IF(الجدول1[[#This Row],[نوع_النقله]]=\"نقلة\",INDEX(الجدول35[[5 طن]:[وش]],MATCH(الجدول1[[#This Row],[المحافظة]],الجدول35[عمود1],0),MATCH(الجدول1[[#This Row],[نوع السيارة]],الجدول35[[#Headers],[5 طن]:[وش]],0)),INDEX(الجدول3[[5 طن]:[وش]],MATCH(الجدول1[[#This Row],[المحافظة]],الجدول3[عمود1],0),MATCH(الجدول1[[#This Row],[نوع السيارة]],الجدول3[[#Headers],[5 طن]:[وش]],0))),\"\")","v":""},"5 طن"]
[{"$f":"الجدول1[[#This Row],[الشيب]]","v":0},"2020-06-03","رمضان محمود",7293,null,"السادات",100,null,null,null,null,null,null,null,null,null,null,680,null,null,"طن",null,"",null,null,{"$f":"IFERROR(IF(الجدول1[[#This Row],[نوع_النقله]]=\"نقلة\",INDEX(الجدول35[[5 طن]:[وش]],MATCH(الجدول1[[#This Row],[المحافظة]],الجدول35[عمود1],0),MATCH(الجدول1[[#This Row],[نوع السيارة]],الجدول35[[#Headers],[5 طن]:[وش]],0)),INDEX(الجدول3[[5 طن]:[وش]],MATCH(الجدول1[[#This Row],[المحافظة]],الجدول3[عمود1],0),MATCH(الجدول1[[#This Row],[نوع السيارة]],الجدول3[[#Headers],[5 طن]:[وش]],0))),\"\")","v":""},"5 طن"]
[{"$f":"الجدول1[[#This Row],[الشيب]]","v":0},"2020-06-03","ابراهيم محمد",null,null,"قويسنا",500,null,null,null,null,null,null,null,null,null,null,null,null,null,"طن",null,"",null,null,{"$f":"IFERROR(IF(الجدول1[[#This Row],[نوع_النقله]]=\"نقلة\",INDEX(الجدول35[[5 طن]:[وش]],MATCH(الجدول1[[#This Row],[المحافظة]],الجدول35[عمود1],0),MATCH(الجدول1[[#This Row],[نوع السيارة]],الجدول35[[#Headers],[5 طن]:[وش]],0)),INDEX(الجدول3[[5 طن]:[وش]],MATCH(الجدول1[[#This Row],[المحافظة]],الجدول3[عمود1],0),MATCH(الجدول1[[#This Row],[نوع السيارة]],الجدول3[[#Headers],[5 طن]:[وش]],0))),\"\")","v":""},"5 طن"]
[{"$f":"الجدول1[[#This Row],[الشيب]]","v":0},"2020-06-03","جمال عبدالناصر",8152,null,"بحيره الروان",500,null,null,null,null,null,null,null,null,null,null,null,null,null,"طن",null,"",null,null,{"$f":"IFERROR(IF(الجدول1[[#This Row],[نوع_النقله]]=\"نقلة\",INDEX(الجدول35[[5 طن]:[وش]],MATCH(الجدول1[[#This Row],[المحافظة]],الجدول35[عمود1],0),MATCH(الجدول1[[#This Row],[نوع السيارة]],الجدول35[[#Headers],[5 طن]:[وش]],0)),INDEX(الجدول3[[5 طن]:[وش]],MATCH(الجدول1[[#This Row],[المحافظة]],الجدول3[عمود1],0),MATCH(الجدول1[[#This Row],[نوع السيارة]],الجدول3[[#Headers],[5 طن]:[وش]],0))),\"\")","v":""},"5 طن"]
[{"$f":"الجدول1[[#This Row],[الشيب]]","v":0},"2020-06-03","محمد عادل",1279,null,"هايبر اكتوبر",100,null,null,null,null,null,null,null,null,null,null,null,null,null,"نقلة",null,"",null,null,{"$f":"IFERROR(IF(الجدول1[[#This Row],[نوع_النقله]]=\"نقلة\",INDEX(الجدول35[[5 طن]:[وش]],MATCH(الجدول1[[#This Row],[المحافظة]],الجدول35[عمود1],0),MATCH(الجدول1[[#This Row],[نوع السيارة]],الجدول35[[#Headers],[5 طن]:[وش]],0)),INDEX(الجدول3[[5 طن]:[وش]],MATCH(الجدول1[[#This Row],[المحافظة]],الجدول3[عمود1],0),MATCH(الجدول1[[#This Row],[نوع السيارة]],الجدول3[[#Headers],[5 طن]:[وش]],0))),\"\")","v":""},"5 طن"]
[{"$f":"الجدول1[[#This Row],[الشيب]]","v":0},"2020-06-03","هاني عبدالمنعم",9626,null,"كفرالشيخ",500,null,null,null,null,null,null,null,null,null,null,null,null,null,"نقلة",null,"",null,null,{"$f":"IFERROR(IF(الجدول1[[#This Row],[نوع_النقله]]=\"نقلة\",INDEX(الجدول35[[5 طن]:[وش]],MATCH(الجدول1[[#This Row],[المحافظة]],الجدول35[عمود1],0),MATCH(الجدول1[[#This Row],[نوع السيارة]],الجدول35[[#Headers],[5 طن]:[وش]],0)),INDEX(الجدول3[[5 طن]:[وش]],MATCH(الجدول1[[#This Row],[المحافظة]],الجدول3[عمود1],0),MATCH(الجدول1[[#This Row],[نوع السيارة]],الجدول3[[#Headers],[5 طن]:[وش]],0))),\"\")","v":""},"5 طن"]
[{"$f":"الجدول1[[#This Row],[الشيب]]","v":876578},"2020-06-03","ابراهيم عطيه",null,null,"دمياط",1000,"الاسكندريه",null,null,null,null,null,null,null,null,null,null,null,null,"طن",null,0,876578,null,{"$f":"IFERROR(IF(الجدول1[[#This Row],[نوع_النقله]]=\"نقلة\",INDEX(الجدول35[[5 طن]:[وش]],MATCH(الجدول1[[#This Row],[المحافظة]],الجدول35[عمود1],0),MATCH(الجدول1[[#This Row],[نوع السيارة]],الجدول35[[#Headers],[5 طن]:[وش]],0)),INDEX(الجدول3[[5 طن]:[وش]],MATCH(الجدول1[[#This Row],[المحافظة]],الجدول3[عمود1],0),MATCH(الجدول1[[#This Row],[نوع السيارة]],الجدول3[[#Headers],[5 طن]:[وش]],0))),\"\")","v":150},"وش"]
[{"$f":"الجدول1[[#This Row],[الشيب]]","v":0},"2020-06-03","نبيل رجب",null,null,"بروفت",400,null,null,null,null,null,null,null,null,null,null,null,null,null,"طن",null,"",null,null,{"$f":"IFERROR(IF(الجدول1[[#This Row],[نوع_النقله]]=\"نقلة\",INDEX(الجدول35[[5 طن]:[وش]],MATCH(الجدول1[[#This Row],[المحافظة]],الجدول35[عمود1],0),MATCH(الجدول1[[#This Row],[نوع السيارة]],الجدول35[[#Headers],[5 طن]:[وش]],0)),INDEX(الجدول3[[5 طن]:[وش]],MATCH(الجدول1[[#This Row],[المحافظة]],الجدول3[عمود1],0),MATCH(الجدول1[[#This Row],[نوع السيارة]],الجدول3[[#Headers],[5 طن]:[وش]],0))),\"\")","v":""},"5 طن"]
[{"$f":"الجدول1[[#This Row],[الشيب]]","v":0},"2020-05-21","حسام حسن",523,null,null,null,null,15,null,null,null,null,null,null,null,null,null,"فرق ميزان",null,"طن"]

{"sheet":"data","index":2,"n_rows":21,"n_cols":23,"rows_kept":21,"cut":false,"hidden":false,"merged":[[0,18,0,21],[0,0,0,3],[0,6,0,9],[0,12,0,15]]}
["سعر السائق بالطن",null,null,null,null,null,"سعر المصنع بالطن",null,null,null,null,null,"سعر السائق بالنقله",null,null,null,null,null,"سعر السائق بالنقله"]
["عمود1","5 طن","فرداني","جرار","وش",null,"عمود1","5 طن","فرداني","جرار","وش",null,"عمود1","5 طن","فرداني","جرار","وش",null,"عمود1","5 طن","فرداني","جرار","وش"]
["القاهره",100,95,80,95,null,"القاهره",126,105,92,105,null,"القاهره",500,600,700,800,null,"القاهره",550,650,750,850]
["الجيزه",110,95,80,95,null,"الجيزه",137,105,92,105,null,"الجيزه",550,650,750,850,null,"الجيزه",600,700,800,900]
["القليوبيه",110,95,80,95,null,"القليوبيه",137,105,92,105,null,"القليوبيه",600,700,800,900,null,"القليوبيه",650,750,850,950]
["الشرقيه",100,85,80,85,null,"الشرقيه",114,97,92,97,null,"الشرقيه",650,750,850,950,null,"الشرقيه",700,800,900,1000]
["الاسماعيليه",105,95,80,95,null,"الاسماعيليه",161,105,92,105,null,"الاسماعيليه",700,800,900,1000,null,"الاسماعيليه",750,850,950,1050]
["السويس",120,95,80,95,null,"السويس",183,119,105,119,null,"السويس",750,850,950,1050,null,"السويس",800,900,1000,1100]
["اكتوبر",120,100,90,100,null,"اكتوبر",161,108,102,108,null,"اكتوبر",800,900,1000,1100,null,"اكتوبر",850,950,1050,1150]
["البحيره",165,125,120,125,null,"البحيره",198,149,143,149,null,"البحيره",850,950,1050,1150,null,"البحيره",900,1000,1100,1200]
["الاسكندريه",215,150,140,150,null,"الاسكندريه",280,171,164,171,null,"الاسكندريه",900,1000,1100,1200,null,"الاسكندريه",950,1050,1150,1250]
["العاشر",40,35,30,35,null,"العاشر",50,45,35,45,null,"العاشر",950,1050,1150,1250,null,"العاشر",1000,1100,1200,1300]
[]
[]
[]
[]
[]
["5 طن",5]
["فرداني",10]
["جرار",24]
["وش",13]

{"sheet":"حساب سائق","index":3,"n_rows":9,"n_cols":11,"rows_kept":9,"cut":false,"hidden":false,"merged":[]}
["تاريخ المحاسبه","(فارغ)"]
["السائق","محمد صلاح"]
[]
[null,null,null,"القيم"]
["التاريخ","مكان التعتيق","Ship","العهدة","الخصم","الشيك","سلفة","قيمه النقله","ميزان ط","كميه","االصافي"]
["2020-06-01","ام زغو",194197,150,null,null,null,1369.77,65,6.3710000000000004,1284.77]
["2020-06-02","اولاد رجب",194534,100,null,null,null,682.6,75,6.8259999999999996,657.6]
["2020-06-03","بحيره",0,200,null,null,null,0,null,null,-200]
["الإجمالي الكلي",null,null,450,null,null,null,2052.37,140,13.196999999999999,1742.37]